Cogmind - Beta 17 @@@ ROGUE MODE // 2026.07.01 @ 23:17:11 Player: KURIIRI Result: Destroyed by Striker with Compact Linear Accelerator Performance ------------- Evolutions (9) 4500 Regions Visited (28) 5600 Robots Destroyed (552) 2760 Value Destroyed (26695) 26695 Prototype IDs (40) 800 Alien Tech Used (0) 0 Bonus (41367) 41367 TOTAL SCORE: 81722 Bonus ------- Triggered High Security 1000 High Alert Combat Kills 8790 Follower Combat Kills 4816 Prayed to X0-1V1 5000 Major X0-1V1 Interference 14850 Entered Garrisons 1600 Used RIF Installer 5000 Scanned by Researcher 500 Friendly Fire -189 Cogmind --------- Core Integrity 0/1750 Matter 800/800 Energy 100/100 System Corruption 25% Temperature Cool (0) Movement Core (50) Location -1/Access Parts ------- > --- POWER (3) -------- (None) > --- PROPULSION (8) --- (None) > --- UTILITY (11) ----- Relay Coupler [Proto] (22) > --- WEAPON (4) ------- (None) > --- INVENTORY (7) ---- Light Particle Reactor Advanced Heat Sink Advanced Transmission Jammer Experimental Transmission Jammer Peak State ------------ > --- POWER ------------ Antimatter-Quantum Reactor > --- PROPULSION ------- Hovering Antigrav-Shield Exoskeleton > --- UTILITY ---------- Armored Scrap Engine Advanced Cooling System Huge Storage Unit Enhanced Optical Array Advanced Weapon Cycler Remote Force Field Relay Coupler [NC] Relay Coupler [Swarmer] Relay Coupler [Sentry] Relay Coupler [Hunter] X0-1V1's Piety Tracker > --- WEAPON ----------- Advanced Remote Datajack Shotgun Directed Quantum Construct/G Accelerated Hardcell Construct/C Hpw. Ballistic Hardcell Construct/C > --- INVENTORY -------- Light Particle Reactor High-capacity Storage Unit Matter Compressor Improved Kinecellerator Advanced Weapon Cycler Advanced Transmission Jammer Experimental EM Shield Improved System Shield Relay Coupler [Grunt] Relay Coupler [Sentry] Relay Coupler [Sentry] Relay Coupler [Specialist] Relay Coupler [Heavy] Relay Coupler [Proto] Relay Coupler [Proto] Relay Coupler [Proto] Relay Coupler [Proto] Enhanced Hardcell Cannon Enhanced Hardcell Cannon Enhanced Hardcell Cannon Advanced Remote Datajack Powered Hammer [Rating: 193] Favorites ----------- Power Constructs Engine Cooled Ion Engine Power Core Micro Nuclear Core Reactor Constructs Propulsion Constructs Treads Light Treads Leg Aluminum Leg Wheel Compact Wheel Hover Unit Constructs Flight Unit Nuclear Pulse Thruster Utility Armored Scrap Engine Device Armored Scrap Engine Storage Large Storage Unit Processor Experimental Targeting Computer Hackware Relay Coupler [Sentry] Protection Medium Armor Plating Weapon Constructs Energy Gun Constructs Energy Cannon Constructs Ballistic Gun Heavy Assault Rifle Ballistic Cannon Constructs Launcher Grenade Launcher Special Weapon Improved Remote Datajack Impact Weapon Thunder Hammer Slashing Weapon Chainsword Build | -11 -10 -10 -9 -9 -9 -9 -7 -7 -7 -7 -7 -7 -6 -6 -5 -5 -5 -5 -4 -4 -4 -4 -4 -3 -3 -2 -2 -1 ------- Run | Yrd Mat Min Mat Sto Gar Rec Fac Was Fac Gar Fac Gar Fac Gar Fac Upp Upp War Pro Fac Gar Fac Gar Res Gar Res Gar Acc Slots Evolved 18 | . . . 2 . . . 4 . . . . . 2 . 2 . . . . 2 . . . 2 . 2 . 2 Power 1 | . . . . . . . . . . . . . 1 . . . . . . . . . . . . . . . Propulsion 6 | . . . 1 . . . 2 . . . . . 1 . 1 . . . . . . . . . . 1 . . Utility 8 | . . . . . . . 1 . . . . . . . 1 . . . . 1 . . . 2 . 1 . 2 Weapon 3 | . . . 1 . . . 1 . . . . . . . . . . . . 1 . . . . . . . . Parts Attached 231 | 1 11 5 17 6 6 9 7 3 . 12 6 2 10 10 11 1 1 . . 20 9 10 10 9 13 18 8 16 Power 17 | . 2 1 2 1 . . . . . 1 . 1 5 1 . . . . . . 1 . . 2 . . . . Engine 13 | . 2 1 2 1 . . . . . 1 . 1 4 1 . . . . . . . . . . . . . . Core 1 | . . . . . . . . . . . . . 1 . . . . . . . . . . . . . . . Reactor 3 | . . . . . . . . . . . . . . . . . . . . . 1 . . 2 . . . . Propulsion 22 | . 2 2 6 . 1 2 3 . . 5 . . . . . . . . . . . . . . . 1 . . Treads 15 | . 2 1 5 . 1 2 2 . . 2 . . . . . . . . . . . . . . . . . . Leg 3 | . . . . . . . . . . 2 . . . . . . . . . . . . . . . 1 . . Wheel 4 | . . 1 1 . . . 1 . . 1 . . . . . . . . . . . . . . . . . . Hover . | . . . . . . . . . . . . . . . . . . . . . . . . . . . . . Flight . | . . . . . . . . . . . . . . . . . . . . . . . . . . . . . Utility 127 | 1 2 . 2 1 3 2 2 2 . 5 5 1 3 2 8 1 1 . . 15 4 10 8 6 7 16 7 13 Device 58 | 1 1 . 1 . 1 1 1 . . 3 . 1 1 1 3 1 1 . . 9 1 4 5 1 2 10 3 6 Storage 3 | . 1 . . . . . 1 . . . 1 . . . . . . . . . . . . . . . . . Processor 6 | . . . . . 1 . . 1 . . . . . . . . . . . 1 . 1 . 1 . 1 . . Hackware 52 | . . . . . . . . 1 . 2 4 . 2 1 5 . . . . 4 3 4 3 3 4 5 4 7 Protection 8 | . . . 1 1 1 1 . . . . . . . . . . . . . 1 . 1 . 1 1 . . . Artifact . | . . . . . . . . . . . . . . . . . . . . . . . . . . . . . Weapon 65 | . 5 2 7 4 2 5 2 1 . 1 1 . 2 7 3 . . . . 5 4 . 2 1 6 1 1 3 Energy Gun 8 | . . 1 2 . . . . . . . . . . . 2 . . . . . . . . 1 2 . . . Energy Cannon 6 | . . . 1 . . . . . . . . . . 3 . . . . . . 1 . . . 1 . . . Ballistic Gun 22 | . 4 1 4 2 2 5 1 . . . . . 1 . . . . . . . . . 1 . 1 . . . Ballistic Cannon 4 | . . . . . . . . . . . . . . 1 . . . . . 2 . . . . . . . 1 Launcher 5 | . 1 . . 1 . . 1 . . . . . . . 1 . . . . . . . . . . 1 . . Special Weapon 12 | . . . . . . . . 1 . . 1 . . 3 . . . . . . 2 . 1 . 1 . 1 2 Impact Weapon 5 | . . . . 1 . . . . . . . . 1 . . . . . . 1 1 . . . 1 . . . Slashing Weapon 3 | . . . . . . . . . . 1 . . . . . . . . . 2 . . . . . . . . Piercing Weapon . | . . . . . . . . . . . . . . . . . . . . . . . . . . . . . Special Melee Weapon . | . . . . . . . . . . . . . . . . . . . . . . . . . . . . . Unidentified Prototypes 19 | . 1 . 4 1 . 1 . 1 . . . . 1 . 1 . . . . 4 1 . . . . 3 . 1 Parts Lost 69 | . . 5 1 . . 3 . . . 3 . . 6 3 1 . . . . 4 . . . 1 13 2 . 27 Power 10 | . . 1 . . . . . . . 1 . . 3 2 . . . . . 1 . . . . 1 . . 1 Propulsion 11 | . . 2 . . . 1 . . . 2 . . . . . . . . . . . . . . 1 . . 5 Utility 26 | . . . . . . 1 . . . . . . 1 . . . . . . 2 . . . . 5 2 . 15 Weapon 22 | . . 2 1 . . 1 . . . . . . 2 1 1 . . . . 1 . . . 1 6 . . 6 Highest Loss Streak 9 | . . 5 1 . . 1 . . . 3 . . 2 1 1 . . . . 1 . . . 1 9 1 . 9 To Critical Strikes 2 | . . . . . . . . . . . . . 1 . . . . . . . . . . . 1 . . . Average Backups 17 | 6 8 8 15 17 16 15 16 15 16 13 12 16 14 20 23 20 20 21 21 17 18 19 20 24 21 21 24 18 Power 1 | 1 1 . 1 1 1 1 1 1 1 . . . . 1 1 2 2 2 2 2 1 1 1 . . 1 . 1 Propulsion 1 | 4 2 1 1 3 4 3 . 1 1 1 1 3 3 2 . . . . 1 2 1 2 1 2 3 2 2 . Utility 9 | . 1 3 4 5 7 7 8 8 7 7 7 8 7 9 13 10 10 10 9 8 9 11 13 16 13 12 14 12 Weapon 4 | 1 3 3 7 7 4 4 5 5 5 3 3 2 1 4 6 7 7 8 7 5 3 4 2 2 2 3 4 2 Tool/Special . | . . . . . . . . . . . . . . . . . . . . . . . . . . . . . Unused Backups 111 | . 5 . 1 4 2 5 3 . 1 9 . 3 2 7 6 . . . 7 4 13 1 5 3 3 5 12 10 Power 3 | . . . . 1 . . . . . . . . . . . . . . . . 2 . . . . . . . Propulsion 30 | . 2 . . 1 . 4 . . . 2 . . 1 4 2 . . . 1 . 2 . 1 . . 2 7 1 Utility 39 | . 1 . . 1 1 . 1 . 1 2 . 1 1 2 3 . . . 1 2 5 1 2 3 2 1 2 6 Weapon 38 | . 2 . 1 1 1 1 1 . . 5 . 2 . 1 1 . . . 5 2 4 . 2 . 1 2 3 3 Tool/Special 1 | . . . . . . . 1 . . . . . . . . . . . . . . . . . . . . . Average Slot Usage (%) 63 | . 99 97 99 100 100 85 61 63 47 54 57 56 49 53 47 48 38 38 41 45 49 53 54 54 47 56 59 50 Engine 4 | . 13 12 10 10 10 10 7 7 7 1 . . 6 8 1 . . . . . . . . . . . . . Reactor 1 | . . . . . . . . . . . 6 5 . . 2 4 5 5 4 1 3 5 5 1 7 4 4 2 Treads 8 | . 27 14 27 30 30 21 13 . . 3 . 1 1 . 1 . 5 5 2 4 4 . 4 . . 1 . . Leg 1 | . . . . . . 2 . . . 3 3 5 . 4 2 3 . . . . . . . 4 3 . 1 2 Device 11 | . 14 14 12 16 . 10 13 8 7 8 10 13 8 6 7 15 16 16 16 16 12 11 11 10 8 16 14 12 Storage 6 | . 14 14 10 10 10 10 7 7 7 7 7 7 6 6 5 5 5 5 5 5 5 5 5 4 4 4 4 2 Processor 2 | . . . . . 9 . . 1 7 7 7 7 6 6 2 . . . . . . 1 . . . 2 4 2 Hackware 4 | . . . . . . . . 4 . 3 3 . 1 5 9 4 . . . 2 10 10 12 16 10 5 12 15 Protection 1 | . . . 5 3 10 5 . . . . . . . . . . . . . . . . . . . 1 . . Energy Gun 1 | . 2 11 6 . . 1 8 14 2 . . . . 1 . . . . 1 . . . . . . 5 3 . Energy Cannon 2 | . . . . . . . 3 . 5 3 5 4 3 2 . 1 2 . 4 1 2 4 4 4 4 3 3 4 Ballistic Gun 7 | . 23 7 24 29 25 23 5 1 . . . . . 4 1 . . . . . . . . . . 1 . . Ballistic Cannon 1 | . . . . . . . . . . 3 1 2 1 1 4 3 2 5 2 4 2 . . . 1 1 4 2 Special Weapon 1 | . . . . . . . . 4 . . 1 4 . 2 2 5 . . . 1 3 4 5 3 1 3 2 . Peak Build Rating 193 | 7 20 23 34 35 35 41 71 71 68 94 101 91 103 99 122 135 129 106 142 152 152 149 142 158 159 187 190 193 Average Rating 87 | 6 9 22 31 34 23 33 61 63 63 66 89 88 86 88 106 124 110 106 122 138 136 136 133 146 136 170 176 148 On Entrance 88 | 6 7 20 23 34 34 35 39 71 68 59 94 83 88 73 88 108 128 106 106 130 137 140 134 138 142 135 176 173 Avg Prop Armor Cover (%) 10 | . . 13 9 . . 8 6 6 6 11 . . . . . . . . . . . . . . . . . 29 Naked Turns . | . . . . . . . . . . . . . . . . . . . . . . . . . . . . . Heaviest Build 200 | 11 30 31 47 45 45 46 101 42 34 54 107 71 72 128 162 193 200 145 152 123 123 152 156 157 160 187 177 159 Greatest Support 264 | 20 40 20 60 60 60 60 100 73 73 114 142 180 180 204 145 176 176 176 182 208 156 165 165 162 162 225 264 178 Greatest Overweight (x) 4 | . . 1 1 . . 2 1 . . 3 1 . . 1 1 2 1 . . 1 1 . . . 1 . . 4 Average Overweight (x) . | . . 1 . . . . . . . . . . . . . 1 . . . . . . . . . . . . Largest Inventory Capacity 27 | 8 15 15 17 17 17 17 27 17 17 17 27 22 22 27 27 27 27 22 22 22 22 22 27 27 27 27 27 27 Average Capacity 20 | 8 11 15 16 17 17 17 18 17 17 17 23 22 22 26 27 27 22 22 22 22 22 22 23 27 26 24 27 21 Most Carried 27 | 7 11 11 17 17 17 17 20 17 17 17 16 20 20 27 27 21 21 21 22 21 22 22 27 27 27 27 27 24 Average Carried 18 | 6 8 8 15 16 16 16 16 15 16 14 14 18 15 21 24 20 20 21 21 17 19 21 22 26 24 23 26 17 Final Capacity 27 | 8 15 15 17 17 17 17 17 17 17 17 22 22 22 27 27 27 22 22 22 22 22 22 27 27 22 27 27 7 Final Carried 27 | 7 11 9 17 17 17 17 17 16 16 14 13 19 15 27 21 20 21 21 20 17 22 21 27 27 20 27 25 4 Scrap Engine Consumption 331 | . . . . . . 21 33 2 12 20 9 11 22 38 25 2 4 . 8 12 19 5 9 14 11 21 15 18 Constructs Created 26 | . . . . . . 3 2 . . 2 . . . 3 . . . . 1 2 1 . . 1 3 4 2 2 Constructs Modified 335 | . . . . . . 5 11 1 4 37 18 22 3 19 24 14 4 . 23 15 29 15 5 2 10 24 34 16 Class Distribution -------------------- 27% | Botlord-Construct 19% | Bothacker-Construct 12% | Construct 10% | Mutant 7% | Commander-Construct 6% | Tank 5% | Gunner Dominant Class ---------------- Mutant | -10/Materials Mutant | -10/Mines Tank | -9/Materials Gunner | -9/Storage Gunner | -9/Garrison Tank | -9/Recycling Construct | -7/Factory Construct | -7/Waste Construct | -7/Factory Commander-Construct | -7/Garrison Bothacker-Construct | -7/Factory Bothacker-Construct | -7/Garrison Bothacker-Construct | -6/Factory Botlord-Construct | -6/Garrison Botlord-Construct | -5/Factory Bothacker-Construct | -5/Upper Caves Bothacker-Construct | -5/Upper Caves Bothacker-Construct | -5/Warlord Bothacker-Construct | -4/Proximity Caves Construct | -4/Factory Botlord-Construct | -4/Garrison Botlord-Construct | -4/Factory Botlord-Construct | -4/Garrison Botlord-Construct | -3/Research Botlord-Construct | -3/Garrison Botlord-Construct | -2/Research Botlord-Construct | -2/Garrison Botlord-Construct | -1/Access Resources | -11 -10 -10 -9 -9 -9 -9 -7 -7 -7 -7 -7 -7 -6 -6 -5 -5 -5 -5 -4 -4 -4 -4 -4 -3 -3 -2 -2 -1 ----------- Run | Yrd Mat Min Mat Sto Gar Rec Fac Was Fac Gar Fac Gar Fac Gar Fac Upp Upp War Pro Fac Gar Fac Gar Res Gar Res Gar Acc Matter Collected 19105 | 208 279 521 1066 655 566 892 297 . 175 1477 554 436 870 616 647 119 408 . 351 1032 1022 723 1497 852 767 836 764 1475 Remotely . | . . . . . . . . . . . . . . . . . . . . . . . . . . . . . Salvage Created 27225 | 121 412 237 1828 1322 767 1508 919 . 662 2177 662 890 1981 1959 1774 158 193 . 376 2290 867 918 587 506 1067 1367 577 1100 Parts 1335 | 5 37 11 87 85 47 61 55 . 37 82 36 55 73 72 83 12 3 . 16 140 40 29 32 23 48 77 39 50 Haulers Intercepted 26 | . 2 . 5 4 . . 4 . . . 1 . 3 . 1 . . . . 2 . . . 1 . 2 . 1 Recyclers Shooed 15 | . . 1 1 3 . 3 1 . . . 3 . 1 . . . . . . 1 . . . 1 . . . . Parts Field Recycled . | . . . . . . . . . . . . . . . . . . . . . . . . . . . . . Retrieved Matter . | . . . . . . . . . . . . . . . . . . . . . . . . . . . . . Parts Self-Destructed 35 | . . . . . . . . . . . . . . . . 13 16 . 6 . . . . . . . . . Prevented 16 | . . . . . . . . . . . . . . . . 2 2 . 12 . . . . . . . . . Parts Restored . | . . . . . . . . . . . . . . . . . . . . . . . . . . . . . Kills | -11 -10 -10 -9 -9 -9 -9 -7 -7 -7 -7 -7 -7 -6 -6 -5 -5 -5 -5 -4 -4 -4 -4 -4 -3 -3 -2 -2 -1 ------- Run | Yrd Mat Min Mat Sto Gar Rec Fac Was Fac Gar Fac Gar Fac Gar Fac Upp Upp War Pro Fac Gar Fac Gar Res Gar Res Gar Acc Combat Hostiles Destroyed 451 | . 15 7 35 18 29 10 14 . 12 29 11 21 14 19 28 3 3 . 4 35 27 7 8 5 60 13 10 14 Melee 19 | . . . . . 1 . . . . 3 . 2 6 4 . . . . . . . 1 . . 1 1 . . Guns 106 | . 5 2 32 16 18 10 6 . . . . . . 9 . . . . . . . . . . . 2 3 3 Cannons 201 | . . . . . . . 5 . 9 18 11 17 7 6 21 3 2 . 3 22 12 5 6 3 25 9 6 11 AOE 115 | . 10 5 3 2 10 . 3 . 3 8 . 2 . . 6 . . . . 13 14 . 1 2 33 . . . Classes Destroyed 23 | 2 6 . 4 . 1 2 2 . 1 . . . . . . 1 . . . . 1 . . . 1 1 1 . Worker 22 | . 3 . 1 4 . . 3 . 1 . 1 . 1 . 1 . . . . 4 . 1 . . . 1 . 1 Builder 12 | . 1 . 1 . . . 1 . . . . . 1 . 1 . . . . 5 . . . . . . . 2 Tunneler 4 | 1 . . 1 . . . . . . . . . 1 . . . . . . 1 . . . . . . . . Hauler 26 | . 2 . 5 4 . . 4 . . . 1 . 3 . 1 . . . . 2 . . . 1 . 2 . 1 Recycler 33 | 1 1 . 3 3 . 13 1 . . . 1 . 6 . 1 . . . . . . 2 . 1 . . . . Mechanic 6 | . . . 1 . . . . . 1 1 . . . . 3 . . . . . . . . . . . . . Operator 7 | . . . 1 2 . . 1 . . . . . 1 . . . . . . . . . . . . 2 . . Drone 1 | . . . . . . . . . . . . . . . . . . . . . . . . . . 1 . . Watcher 26 | . 3 . 5 2 . . 1 . 3 . . . . 1 1 . . . . 4 . 3 . 1 . 2 . . Swarmer 136 | . 10 . 15 3 12 . 3 . 4 12 2 9 2 3 10 2 . . . 14 10 . 2 2 14 3 4 . Cutter 4 | . . . . . . . . . . . . . . . . . . . . . 4 . . . . . . . Saboteur 1 | . . . . . . . . . . . . . . . . . . . . . . . . . . . 1 . Grunt 121 | . 5 7 15 6 14 1 2 . 2 6 3 3 7 10 8 . 2 . 1 11 5 . 4 . 2 3 . 4 Brawler 12 | . . . . . . . 3 . . 2 . . . 1 1 . . . 1 . . 1 . 1 2 . . . Duelist 10 | . . . 1 1 . . . . . 1 . . 1 1 1 . . . . . . . . 1 . . . 3 Sentry 49 | . . . 4 8 2 8 2 . 2 7 4 4 . 1 3 . 1 . . 2 . . . . . 1 . . Specialist 14 | . . . . . 1 . . . 2 1 . 1 . 2 2 . . . . . 5 . . . . . . . Hunter 14 | . . . . . . 1 . . 1 . . 1 1 . . . . . 1 2 . 4 2 . . 1 . . Programmer 47 | . . . . . . . 4 . . 1 2 3 4 3 3 . . . . 6 2 2 1 1 . 5 3 7 Heavy 2 | . . . . . . . . . 1 . . . . . . . . . . . . . . . . 1 . . Behemoth 6 | . . . . . . . . . . . . . . . . 1 . . 1 . 1 . . . 1 . 2 . Scientist 1 | . . . . . . 1 . . . . . . . . . . . . . . . . . . . . . . Assembled 41 | . . . . . . . . . . . . . . . . . . . . . . . . . 41 . . . Best Kill Streak 37 | 2 10 3 13 7 5 7 5 . 11 9 4 4 4 5 5 2 2 . 1 11 5 4 2 5 37 4 2 6 Combat Bots Only 37 | . 7 3 7 3 5 2 4 . 10 9 2 4 4 5 5 2 2 . 1 7 5 2 2 2 37 3 2 5 Max Kills in Single Turn 13 | 1 3 3 3 3 3 1 3 . 3 3 2 2 1 1 3 1 1 . 1 5 4 1 1 3 13 2 1 1 Gunslinging 1 | . . . . 1 1 . . . . . . . . . . . . . . . . . . . . . . . Exploded 13 | . 3 3 3 2 3 . 2 . 3 3 . 2 . . 3 . . . . 4 4 . 1 2 13 . . . Melee 1 | . . . . . 1 . . . . 1 . 1 1 1 . . . . . . . 1 . . 1 1 . . Uniques/NPCs Destroyed . | . . . . . . . . . . . . . . . . . . . . . . . . . . . . . Combat | -11 -10 -10 -9 -9 -9 -9 -7 -7 -7 -7 -7 -7 -6 -6 -5 -5 -5 -5 -4 -4 -4 -4 -4 -3 -3 -2 -2 -1 -------- Run | Yrd Mat Min Mat Sto Gar Rec Fac Was Fac Gar Fac Gar Fac Gar Fac Upp Upp War Pro Fac Gar Fac Gar Res Gar Res Gar Acc Hostile Shots Fired 3268 | . 55 54 65 53 61 58 129 . 36 191 139 92 318 100 88 18 42 . 30 301 208 76 65 64 328 88 59 550 Missed 1041 | . 16 10 18 13 16 17 47 . 22 70 63 22 100 32 26 5 21 . 9 89 78 30 15 30 79 27 21 165 Hits 2227 | . 39 44 47 40 45 41 82 . 14 121 76 70 218 68 62 13 21 . 21 212 130 46 50 34 249 61 38 385 Melee 53 | . . . 2 5 . . 1 . . 1 . . 2 . 1 . . . . . 4 . . . 25 2 . 10 Projectile 2174 | . 39 44 45 35 45 41 81 . 14 120 76 70 216 68 61 13 21 . 21 212 126 46 50 34 224 59 38 375 AOE 4 | . . . . . . . . . . . . . . 1 . . . . . . . . . . . . 2 1 Critical Strikes 80 | . . 1 . 1 1 1 2 . . 1 . . 8 1 3 1 2 . 1 7 6 . 3 . 11 3 3 24 Part Disruptions 1 | . . . . . . . . . 1 . . . . . . . . . . . . . . . . . . . Damage Taken 37276 | . 376 675 568 641 499 605 688 . 150 1479 584 958 2774 1483 1096 166 253 51 201 3861 2620 678 804 782 4657 1305 647 8675 Core 6087 | . 58 118 52 42 31 58 99 . 6 96 37 113 459 154 71 38 18 31 8 564 258 50 41 35 785 59 22 2784 Absorbed by Shields 4165 | . . 35 . . . 27 . . . 30 . . . . 253 171 264 51 214 163 . 131 153 . 361 409 440 1463 Ignored by Resistances 440 | . . . . . . . . . . . . . 134 . . . . . . 37 . . . . 40 . . 229 Regen/Repaired (Parts) 17817 | . . . 46 . . . 112 . 49 902 334 697 709 1156 688 394 1538 . 241 2165 2078 106 996 283 2346 602 983 1392 Core Remaining (%) 78 | 100 . 55 . . . 100 . . . . . 75 . 79 . . . . 85 . . . 73 . 43 . 94 . Volleys Fired 1721 | 8 52 29 72 55 40 43 48 8 45 86 55 73 55 135 92 15 18 2 19 124 108 40 74 40 106 90 68 121 Largest 4 | 2 2 2 3 3 3 3 3 2 1 1 1 1 2 3 2 1 1 1 2 2 1 1 1 1 3 4 3 3 Hottest 350 | 60 60 69 109 69 69 74 179 104 74 164 82 162 207 196 76 46 96 96 213 135 142 164 164 164 275 328 203 350 Shots Fired 2447 | 16 89 52 208 161 106 124 109 9 45 83 55 73 71 187 96 15 19 2 21 124 99 36 73 40 122 139 100 173 Gun 1033 | 16 74 49 207 159 101 124 78 2 . . . . 16 91 4 . . . 2 2 . . . . 1 54 37 16 Cannon 1081 | . . . . . . . 29 . 45 63 46 69 46 57 76 13 17 2 19 111 66 27 50 21 108 72 47 97 Launcher 74 | . 15 3 1 2 5 . 2 . . 7 . . . . 2 . 2 . . 8 17 . . 2 8 . . . Special 259 | . . . . . . . . 7 . 13 9 4 9 39 14 2 . . . 3 16 9 23 17 5 13 16 60 Kinetic 1528 | 8 71 46 162 159 101 124 74 2 . 39 10 13 36 90 64 13 . . . 103 58 . 50 21 55 78 55 96 Thermal 498 | 8 3 3 45 . . . 33 . 45 24 36 56 10 58 9 . 14 2 10 2 8 17 . . 53 18 28 16 Explosive 74 | . 15 3 1 2 5 . 2 . . 7 . . . . 2 . 2 . . 8 17 . . 2 8 . . . Electromagnetic 88 | . . . . . . . . . . . . . 16 . 7 . 3 . 11 8 . 10 . . 1 30 1 1 Robot Hit Streak 37 | 5 12 11 16 29 35 18 11 3 9 16 14 12 17 37 14 12 3 . 7 8 13 4 6 12 13 10 14 17 Robot Miss Streak 8 | 4 3 4 5 4 2 2 4 2 5 3 2 3 4 8 3 1 2 . 2 5 3 4 4 6 7 7 6 5 Penetration Max 2 | . . . . . . . 1 . . 1 1 . 1 1 2 . . . . 1 . . . . 1 . . 1 Secondary Targets 16 | . 1 . 5 4 4 2 . . . . . . . . . . . . . . . . . . . . . . Max Gunslinging Chain 1 | . 1 . 1 1 1 1 . . . . . . . . . . . . . . . . . . . . . . Shots Hit Robots 1630 | 8 50 37 132 112 59 89 78 6 28 105 40 35 87 145 71 12 8 . 11 79 50 21 41 27 64 87 41 107 Core Hits 847 | 3 41 15 63 47 35 35 45 . 21 63 15 24 32 55 34 3 7 . 5 65 39 6 6 15 103 28 13 29 Critical Kills 10 | . . . . . 1 . . . . . . . . 1 . . . . . . . . . 1 6 . 1 . Critical Parts Destroyed 14 | . 1 . . 1 . . 1 . . . . . . . . . . . . . 2 1 3 . 3 . 2 . Critical Strikes 52 | . 1 . 2 1 2 . 1 . . 2 . . 8 2 . . . . . 3 8 1 3 2 11 . 3 2 Burn 2 | . . . 2 . . . . . . . . . . . . . . . . . . . . . . . . . Meltdown 2 | . . . . . . . . . . . . . . . . . . . . . . . . . 1 . 1 . Destroy 24 | . 1 . . 1 . . 1 . . . . . . 1 . . . . . . 4 . 3 2 9 . 2 . Blast 11 | . . . . . 1 . . . . . . . . . . . . . . 3 4 . . . 1 . . 2 Smash 2 | . . . . . 1 . . . . . . . . . . . . . . . . 1 . . . . . . Sever 11 | . . . . . . . . . . 2 . . 8 1 . . . . . . . . . . . . . . Melee Attacks 289 | . . . . 4 27 4 2 . . 73 . 11 37 44 . . . . . 18 21 17 13 3 1 14 . . Impact 112 | . . . . 4 27 4 2 . . . . . . . . . . . . 6 21 17 13 3 1 14 . . Slashing 177 | . . . . . . . . . . 73 . 11 37 44 . . . . . 12 . . . . . . . . Piercing . | . . . . . . . . . . . . . . . . . . . . . . . . . . . . . Sneak Attacks 17 | . . . . . . . . . . . . 1 9 1 . . . . . 1 1 2 . . . 2 . . Combat Hostiles . | . . . . . . . . . . . . . . . . . . . . . . . . . . . . . Follow-up Attacks . | . . . . . . . . . . . . . . . . . . . . . . . . . . . . . Damage Inflicted 75609 | 75 1485 701 2266 2068 1639 1477 2164 30 1855 6880 2197 2083 3761 4674 5720 889 925 . 740 8253 5420 1317 1786 1304 7254 3379 1588 3679 Guns 12918 | 75 580 472 2112 1858 908 1370 1179 30 . . . . 268 1686 140 . . . 69 . . . . . . 997 543 631 Cannons 38687 | . . . . . 100 . 487 . 1678 2783 1941 1820 1954 811 4449 889 489 . 671 5714 2657 732 1744 921 3348 1563 1015 2921 Explosions 14692 | . 857 229 139 204 571 . 498 . 177 948 224 106 . . 1131 . 436 . . 2277 2676 . . 366 3853 . . . Melee 8739 | . . . . . 60 . . . . 3146 . 149 1539 2177 . . . . . 262 87 585 42 . . 692 . . Ramming 573 | . 48 . 15 6 . 107 . . . 3 32 8 . . . . . . . . . . . 17 53 127 30 127 Kinetic 35802 | 29 543 435 1675 1858 1008 1370 1179 30 . 1624 673 561 1182 1560 4049 889 . . . 5575 2275 . 1744 921 1420 1498 797 2907 Thermal 14552 | 46 37 37 437 . . . 659 . 1678 1216 1492 1365 541 937 752 . 298 . 282 272 382 590 . . 1893 246 761 631 Explosive 13195 | . 857 229 139 204 571 . 326 . . 891 . . . . 708 . 436 . . 1939 2676 . . 366 3853 . . . Electromagnetic 2748 | . . . . . . . . . 177 . . . 499 . 211 . 191 . 458 205 . 142 . . 35 816 . 14 Impact 1466 | . . . . . 60 . . . . . . . . . . . . . . . 87 585 42 . . 692 . . Slashing 7273 | . . . . . . . . . . 3146 . 149 1539 2177 . . . . . 262 . . . . . . . . Piercing . | . . . . . . . . . . . . . . . . . . . . . . . . . . . . . Highest Corruption 32 | . . . 1 1 . . . 7 9 9 . . 5 . 1 10 10 . . 9 27 32 15 . 15 10 14 25 Average Corruption 9 | . . . 1 1 . . . 7 7 9 . . 4 . 1 5 10 . . 6 23 26 14 . 9 2 4 10 Corruption Purged . | . . . . . . . . . . . . . . . . . . . . . . . . . . . . . Corruption Blocked . | . . . . . . . . . . . . . . . . . . . . . . . . . . . . . Effects 330 | . . . 4 5 . . . 3 21 39 . . 6 . 5 17 9 . . 26 61 36 23 . 13 15 12 35 Message Errors 73 | . . . . 1 . . . . 4 10 . . 1 . 2 6 2 . . 6 15 6 7 . 1 5 3 4 Matter Fused 75 | . . . 1 2 . . . 2 10 9 . . 2 . . 4 3 . . 6 17 5 5 . 4 1 1 3 Heat Flow Errors 34 | . . . . . . . . 1 2 3 . . . . . 2 . . . 2 4 5 3 . 3 2 2 5 Energy Discharges 37 | . . . . . . . . . 1 5 . . 1 . 1 2 1 . . 7 7 4 3 . . 2 . 3 Parts Rejected 5 | . . . . . . . . . . 1 . . 1 . . . . . . . . 1 . . . . . 2 Parts Fused 1 | . . . . . . . . . . . . . . . . . . . . . . . . . . . . 1 Data Loss (minor) 38 | . . . 1 2 . . . . 3 5 . . 1 . . 3 1 . . 1 4 1 3 . 1 3 5 4 Data Loss (major) 17 | . . . 1 . . . . . 1 2 . . . . 2 . 1 . . 2 2 4 1 . . . 1 . Misfires 4 | . . . . . . . . . . . . . . . . . 1 . . . 1 . . . 1 . . 1 Alerts 8 | . . . . . . . . . . 1 . . . . . . . . . . 1 2 . . 2 . . 2 Misdirections 10 | . . . . . . . . . . . . . . . . . . . . . . 4 . . . . . 6 Weapon Failures 28 | . . . 1 . . . . . . 3 . . . . . . . . . 2 10 4 1 . 1 2 . 4 Overload Shots . | . . . . . . . . . . . . . . . . . . . . . . . . . . . . . Overflow Damage 5347 | . . . . . 20 17 19 . 295 496 124 97 345 103 808 170 23 . . 876 314 421 342 20 437 234 31 155 Projectiles 3323 | . . . . . . . . . 295 287 106 80 163 18 526 170 . . . 734 108 25 342 20 184 79 31 155 Explosions 961 | . . . . . 20 . 19 . . 36 18 . . . 282 . 23 . . 104 206 . . . 253 . . . Melee 1063 | . . . . . . 17 . . . 173 . 17 182 85 . . . . . 38 . 396 . . . 155 . . Knockbacks 108 | . . . . . . 1 . . . 4 1 1 10 1 9 2 . . . 19 3 2 7 3 15 3 3 24 Impact 5 | . . . . . . 1 . . . . . . . . . . . . . . . 2 . . . . 1 1 Kinetic 97 | . . . . . . . . . . 4 1 1 9 1 9 1 . . . 19 3 . 7 3 14 3 2 20 Secondary 6 | . . . . . . . . . . . . . 1 . . 1 . . . . . . . . 1 . . 3 Self-Inflicted Damage 891 | . 46 . . . . . . . 29 183 . . . . 112 . 106 . . 73 240 . . 28 59 . . 15 Shots 23 | . 2 . . . . . . . 2 6 . . . . 2 . 2 . . 2 5 . . 1 1 . . . Rammed 38 | . 13 . 1 1 . 9 . . . 1 . . . . . . . . . . . . . . . 4 1 8 Targets Rammed 53 | . 13 . 1 1 . 12 . . . 2 1 1 . . . . . . . . . . . 1 1 4 1 15 Kicked 12 | . . . . . . . . . . 1 1 1 . . . . . . . . . . . 1 1 . . 7 Crushed 3 | . . . . . . 3 . . . . . . . . . . . . . . . . . . . . . . Highest Temperature 698 | 40 24 208 308 27 30 27 372 189 256 413 177 500 414 387 18 146 318 256 290 698 296 413 488 407 636 398 482 603 Average Temperature 119 | 21 13 36 72 8 7 7 95 98 76 114 64 168 154 70 9 71 152 97 85 176 96 133 160 164 229 128 123 181 Received Heat Transfer 6483 | . 54 341 117 144 120 198 81 . 6 237 120 87 986 291 172 184 61 . 6 369 339 9 82 78 1621 53 8 719 Effects 92 | . . . 1 . . . 2 . . 4 . 9 5 . . . 2 . . 18 . 3 3 5 23 3 3 11 Shutdowns 20 | . . . . . . . 1 . . 1 . 4 . . . . . . . 4 . . . . 7 1 1 1 Energy Bleed 10 | . . . . . . . . . . . . 1 2 . . . . . . . . . . 1 2 . . 4 Interference 27 | . . . . . . . 1 . . 3 . 1 2 . . . . . . 6 . 3 2 3 4 2 . . Matter Decay 12 | . . . . . . . . . . . . 2 1 . . . 1 . . 2 . . . 1 1 . 1 3 Short Circuit 6 | . . . 1 . . . . . . . . . . . . . . . . 1 . . . . 2 . 1 1 Damage (minor) 9 | . . . . . . . . . . . . 1 . . . . 1 . . 4 . . 1 . 1 . . 1 Damage (major) 4 | . . . . . . . . . . . . . . . . . . . . . . . . . 4 . . . Damage (core) 4 | . . . . . . . . . . . . . . . . . . . . 1 . . . . 2 . . 1 Siege Activations . | . . . . . . . . . . . . . . . . . . . . . . . . . . . . . Martial Activations . | . . . . . . . . . . . . . . . . . . . . . . . . . . . . . Shielding Activations . | . . . . . . . . . . . . . . . . . . . . . . . . . . . . . Robots Disrupted 2 | . . . . . . . . . 1 . . . . . . . . . . . . . . . . 1 . . Combat Hostiles 2 | . . . . . . . . . 1 . . . . . . . . . . . . . . . . 1 . . Robots Corrupted 13 | . . . . . . . . . . . . . 2 . 1 . 1 . 1 . . 4 . . . 4 . . Combat Hostiles 6 | . . . . . . . . . . . . . 1 . 1 . 1 . 1 . . 1 . . . 1 . . Parts Fried 32 | . . . . . . . . . 1 . . . 5 . 1 . . . 2 6 . 7 . . . 10 . . Impact Corruptions 17 | . . . . . . 1 . . . . . . . . . 1 . . . . . 9 . . . 4 . 2 Robots Melted 3 | . . . 1 . . . . . . . . . . . . . . . . . . . . . 1 . 1 . Combat Hostiles 2 | . . . . . . . . . . . . . . . . . . . . . . . . . 1 . 1 . Parts Melted 21 | . . . 2 . . . 1 . . . 1 2 2 4 2 1 1 . 1 . . . . . . . 4 . Heat Transferred 9318 | 100 75 74 1110 . . . 749 . 1036 235 250 748 400 1002 435 . 300 . 224 250 . 296 . . 814 148 481 591 Parts Sabotaged . | . . . . . . . . . . . . . . . . . . . . . . . . . . . . . Parts Stolen . | . . . . . . . . . . . . . . . . . . . . . . . . . . . . . Parts Stripped . | . . . . . . . . . . . . . . . . . . . . . . . . . . . . . Power Chain Reactions 7 | . . . . . . . . . . 1 2 1 . . . . . . . 3 . . . . . . . . Alert | -11 -10 -10 -9 -9 -9 -9 -7 -7 -7 -7 -7 -7 -6 -6 -5 -5 -5 -5 -4 -4 -4 -4 -4 -3 -3 -2 -2 -1 ------- Run | Yrd Mat Min Mat Sto Gar Rec Fac Was Fac Gar Fac Gar Fac Gar Fac Upp Upp War Pro Fac Gar Fac Gar Res Gar Res Gar Acc Maximum Alert Level 5 | . 1 . 2 2 4 2 2 1 1 5 4 5 4 5 5 . . . . 4 5 4 4 3 4 4 5 5 Low Security (%) 13 | 100 77 100 10 7 . . 45 79 64 . . . . . . . . . . 29 . . . . . . . . Level 1 11 | . 22 . 53 84 14 . 24 20 35 8 . . . . . . . . . 14 . . . . . . . . Level 2 19 | . . . 36 7 36 100 29 . . 20 . 2 . . . . . . . 26 . . 14 27 14 25 . . Level 3 19 | . . . . . 27 . . . . 18 36 13 87 28 16 . . . . 23 17 38 55 72 35 69 13 . Level 4 22 | . . . . . 20 . . . . 28 63 73 12 45 49 . . . . 5 34 61 30 . 49 4 31 17 Level 5 9 | . . . . . . . . . . 24 . 10 . 26 9 . . . . . 48 . . . . . 54 . High Security 4 | . . . . . . . . . . . . . . . 24 . . . . . . . . . . . . 82 Max Security . | . . . . . . . . . . . . . . . . . . . . . . . . . . . . . Peak Influence 2292 | 10 232 91 545 415 1472 670 619 206 351 1721 1380 1649 1232 2115 2116 . . . . 1131 2228 1198 1208 868 1227 1152 2292 2001 Initial 1375 | . . 65 . 213 256 660 321 206 116 229 903 641 865 858 1110 . . . . 6 780 1169 606 679 588 652 845 1375 Average 888 | 1 151 29 382 279 753 551 312 187 139 1097 1158 1284 913 1390 1514 . . . . 469 1556 1008 981 766 1010 755 1704 1737 Influence Increases 23481 | 10 658 171 1039 633 1251 539 1096 1 484 1522 771 1108 849 1507 1886 113 238 . 134 1587 1548 470 742 556 802 949 1607 1210 Destroy 0b10 Robot/C 10920 | . 300 140 700 360 660 280 280 . 240 620 400 580 400 620 920 80 160 . 100 740 640 180 280 260 400 440 600 540 Destroy 0b10 Robot/NC 870 | 10 50 . 90 75 . 70 55 . 25 55 30 . 65 50 70 . . . . 80 . 30 . 35 5 50 . 25 Destroy Leader 1676 | . 60 10 150 132 10 10 100 . 76 40 134 40 106 62 134 10 20 . 20 142 40 56 20 54 50 78 40 82 Allied During Kill 2107 | . . . . . 21 33 2 . . 109 156 123 40 277 87 23 58 . 14 18 81 29 98 81 2 246 376 233 Successful Hack 202 | . 14 . 14 13 16 6 . . 38 21 . . 2 16 17 . . . . . 7 12 . 12 . . 14 . Select Force Hacks 180 | . 60 . 60 . . 60 . . . . . . . . . . . . . . . . . . . . . . Disable Machine 1230 | . 15 . 15 30 . 75 195 . 75 30 15 60 . 30 240 . . . . 135 45 30 30 30 15 60 90 15 Anti-Garrison Action 2400 | . . . . . 400 . 150 . . 400 . 200 . 350 . . . . . . 200 . 200 . 150 . 350 . Destroy Structure 2459 | . 54 21 10 23 129 5 32 1 15 172 21 105 11 72 328 . . . . 322 535 58 84 54 120 75 107 105 Advance Influence 100 | . . . . . . . 100 . . . . . . . . . . . . . . . . . . . . . Partial Spotted 60 | . . . . . . . . . . . . . . . 15 . . . . 15 . . . 30 . . . . Lose Combat Pursuer 1095 | . 105 . . . 15 . . . 15 75 15 . 225 30 75 . . . . 135 . 75 30 . 60 . 30 210 Miscellaneous 182 | . . . . . . . 182 . . . . . . . . . . . . . . . . . . . . . Influence Decreases 21646 | 10 489 340 532 746 178 1477 1036 423 323 129 1575 376 1272 618 1885 1164 481 822 124 482 435 1831 401 979 427 982 442 1667 Entered New Map 11336 | . . 104 . 294 138 807 308 383 51 99 818 276 784 368 1005 784 203 822 . 4 335 1059 261 529 197 508 282 917 Time Decay 6355 | 10 489 186 522 302 . 640 568 40 272 . 302 . 368 . 510 380 278 . 124 418 . 262 . 270 . 334 . 80 Search Patrol Dispatched 100 | . . . . . . . 100 . . . . . . . . . . . . . . . . . . . . . Lost Part 690 | . . 50 10 . . 30 . . . 30 . . 60 30 10 . . . . 40 . . . 10 130 20 . 270 Lost Ally 2040 | . . . . . 40 . 60 . . . 80 100 60 220 210 . . . . 20 100 60 140 170 100 120 160 400 Purge Threat 1125 | . . . . 150 . . . . . . 375 . . . 150 . . . . . . 450 . . . . . . Squads Dispatched 118 | . 3 . 4 3 . 1 10 . 4 . 5 . 8 . 27 . . . . 10 . 6 . 1 . 8 . 28 Investigation 13 | . 3 . 2 . . 1 1 . . . 1 . 2 . . . . . . 1 . 1 . . . 1 . . Extermination 17 | . . . . . . . 4 . 1 . 1 . 2 . 2 . . . . 2 . 1 . 1 . 2 . 1 Reinforcement 25 | . . . 2 2 . . . . 3 . 2 . 2 . 2 . . . . 5 . . . . . 2 . 5 Assault 54 | . . . . . . . 3 . . . 1 . 2 . 20 . . . . 2 . 1 . . . 3 . 22 Garrison 9 | . . . . 1 . . 2 . . . . . . . 3 . . . . . . 3 . . . . . . Intercept . | . . . . . . . . . . . . . . . . . . . . . . . . . . . . . Searches Triggered 1 | . . . . . . . 1 . . . . . . . . . . . . . . . . . . . . . Construction Impeded 5 | . . . . . . . . . . . . . . . . . . . . 1 . . . . . . . 4 Haulers Reinforced 8 | . . . . . . . . . . . 1 . 2 . 1 . . . . 3 . . . . . 1 . . Active Scanning Responses . | . . . . . . . . . . . . . . . . . . . . . . . . . . . . . Cargo Convoy Interrupts 2 | . . . . . . . . . . . . . . . 1 . . . . . . . . 1 . . . . Stealth | -11 -10 -10 -9 -9 -9 -9 -7 -7 -7 -7 -7 -7 -6 -6 -5 -5 -5 -5 -4 -4 -4 -4 -4 -3 -3 -2 -2 -1 --------- Run | Yrd Mat Min Mat Sto Gar Rec Fac Was Fac Gar Fac Gar Fac Gar Fac Upp Upp War Pro Fac Gar Fac Gar Res Gar Res Gar Acc Distress Signals 30 | . 2 . 2 3 . 1 . . . . 2 . 2 . 2 . . . . 6 1 3 . . 1 1 . 4 Communications Jammed 16 | . . . . . . . . . . . . . . . . . . . . . . . . . . 16 . . Distress Signals 4 | . . . . . . . . . . . . . . . . . . . . . . . . . . 4 . . Times Spotted 985 | . 27 8 43 20 33 16 17 5 22 41 22 28 48 38 65 5 9 . 4 58 40 24 28 36 104 49 46 149 Peak Tracking Total 44 | . 8 3 5 4 4 3 3 3 4 9 4 8 8 7 5 3 5 . 2 7 8 9 6 12 44 13 5 24 Tactical Retreats 55 | . 7 . . . 1 . . . 1 5 1 . 7 2 4 . . . . 6 . 3 2 . 7 . 2 7 Traps | -11 -10 -10 -9 -9 -9 -9 -7 -7 -7 -7 -7 -7 -6 -6 -5 -5 -5 -5 -4 -4 -4 -4 -4 -3 -3 -2 -2 -1 ------- Run | Yrd Mat Min Mat Sto Gar Rec Fac Was Fac Gar Fac Gar Fac Gar Fac Upp Upp War Pro Fac Gar Fac Gar Res Gar Res Gar Acc Traps Triggered 39 | . 1 . 2 . . . 1 . 1 3 1 1 1 9 . . . 2 . . 3 1 2 3 1 2 5 . Indirectly . | . . . . . . . . . . . . . . . . . . . . . . . . . . . . . Trap Hack Attempts . | . . . . . . . . . . . . . . . . . . . . . . . . . . . . . Triggered . | . . . . . . . . . . . . . . . . . . . . . . . . . . . . . Disarmed . | . . . . . . . . . . . . . . . . . . . . . . . . . . . . . Reprogrammed . | . . . . . . . . . . . . . . . . . . . . . . . . . . . . . Reused . | . . . . . . . . . . . . . . . . . . . . . . . . . . . . . Traps Extracted . | . . . . . . . . . . . . . . . . . . . . . . . . . . . . . Installed . | . . . . . . . . . . . . . . . . . . . . . . . . . . . . . Triggered . | . . . . . . . . . . . . . . . . . . . . . . . . . . . . . Machines | -11 -10 -10 -9 -9 -9 -9 -7 -7 -7 -7 -7 -7 -6 -6 -5 -5 -5 -5 -4 -4 -4 -4 -4 -3 -3 -2 -2 -1 ---------- Run | Yrd Mat Min Mat Sto Gar Rec Fac Was Fac Gar Fac Gar Fac Gar Fac Upp Upp War Pro Fac Gar Fac Gar Res Gar Res Gar Acc Machines Disabled 120 | . 1 . 1 2 7 5 14 . 5 7 1 8 . 7 16 1 . 1 . 9 8 2 6 2 2 4 10 1 Max in Single Turn 11 | . 1 . 1 1 2 1 11 . 4 1 1 1 . 1 2 1 . 1 . 4 1 . 1 1 1 2 1 1 Garrison Access 9 | . . . . . . . 3 . . . 1 . . . 2 . . . . 1 . 1 . . . 1 . . Garrison Relay 27 | . . . . . 4 . . . . 4 . 4 . 3 . . . . . . 4 . 3 . 1 . 4 . Phase Generator 4 | . . . . . 1 . . . . 1 . . . 1 . . . . . . . . . . . . 1 . Energy Cycler 1 | . . . . . . . . . . . . . . . . . . . . . . . . . . . . 1 Machines Repaired . | . . . . . . . . . . . . . . . . . . . . . . . . . . . . . Machines Dismantled . | . . . . . . . . . . . . . . . . . . . . . . . . . . . . . Machines Sabotaged . | . . . . . . . . . . . . . . . . . . . . . . . . . . . . . Overloaded Fab Kills . | . . . . . . . . . . . . . . . . . . . . . . . . . . . . . Hacking | -11 -10 -10 -9 -9 -9 -9 -7 -7 -7 -7 -7 -7 -6 -6 -5 -5 -5 -5 -4 -4 -4 -4 -4 -3 -3 -2 -2 -1 --------- Run | Yrd Mat Min Mat Sto Gar Rec Fac Was Fac Gar Fac Gar Fac Gar Fac Upp Upp War Pro Fac Gar Fac Gar Res Gar Res Gar Acc Machines Accessed 101 | . 10 . 11 6 3 8 5 . 4 3 6 1 3 1 7 1 2 . . 5 2 9 2 3 . 6 3 . Terminals 53 | . 8 . 6 5 3 1 2 . 2 3 2 1 1 1 4 . . . . 2 2 3 2 . . 2 3 . Fabricators 5 | . . . . . . . . . 1 . 1 . . . . . . . . 1 . 1 . 1 . . . . Repair Stations 4 | . . . 1 . . . . . . . . . . . . . . . . . . 1 . . . 2 . . Recycling Units 11 | . 2 . 2 . . 6 . . . . . . . . 1 . . . . . . . . . . . . . Scanalyzers 8 | . . . 2 . . . 1 . . . 1 . 1 . 1 . . . . . . 1 . 1 . . . . Garrison Access 16 | . . . . 1 . . 2 . 1 . 2 . 1 . 1 . . . . 2 . 3 . 1 . 2 . . Total Hacks 210 | . 27 . 21 14 5 15 14 . 6 5 10 2 6 2 16 1 5 . . 7 5 17 4 12 . 8 8 . Successful 103 | . 14 . 13 5 2 8 10 . 3 2 4 1 4 1 7 1 5 . . 3 1 9 . 7 . 2 1 . Failed 106 | . 12 . 8 9 3 7 4 . 3 3 6 1 2 1 9 . . . . 4 4 8 4 5 . 6 7 . Catastrophic 24 | . 2 . 1 2 . 1 2 . 1 1 2 . . . 1 . . . . 2 . 6 1 . . 1 1 . Database Lockouts 1 | . 1 . . . . . . . . . . . . . . . . . . . . . . . . . . . Manual 83 | . 22 . 16 9 . 8 5 . 3 . 5 . 2 . 4 . . . . 1 . 3 . 5 . . . . Terminals 114 | . 23 . 13 13 5 2 5 . 3 5 3 2 2 2 8 . . . . 2 5 6 4 . . 3 8 . Fabricators 14 | . . . . . . . . . 2 . 3 . . . . . . . . 3 . 1 . 5 . . . . Repair Stations 8 | . . . 2 . . . . . . . . . . . . . . . . . . 3 . . . 3 . . Recycling Units 20 | . 4 . 2 . . 11 . . . . . . . . 3 . . . . . . . . . . . . . Scanalyzers 27 | . . . 4 . . . 7 . . . 1 . 3 . 4 . . . . . . 3 . 5 . . . . Garrison Access 19 | . . . . 1 . . 2 . 1 . 3 . 1 . 1 . . . . 2 . 4 . 2 . 2 . . Terminal Hacks 34 | . 2 . 4 4 2 2 1 . 1 2 . 1 . 1 3 1 5 . . . 1 3 . . . . 1 . Record 5 | . . . . . . . . . . . . . . . . 1 4 . . . . . . . . . . . Robot Analysis 5 | . 1 . 3 . . . 1 . . . . . . . . . . . . . . . . . . . . . Prototype ID Bank 1 | . . . . . . . . . 1 . . . . . . . . . . . . . . . . . . . Open Door 5 | . . . . 2 . . . . . 1 . . . . . . 1 . . . 1 . . . . . . . Emergency Access Points 4 | . . . . . 1 . . . . 1 . 1 . . . . . . . . . . . . . . 1 . Terminal Index 2 | . 1 . . . . . . . . . . . . . 1 . . . . . . . . . . . . . Alert Level 1 | . . . . 1 . . . . . . . . . . . . . . . . . . . . . . . . Unreport Threat 5 | . . . . 1 . . . . . . . . . . 1 . . . . . . 3 . . . . . . Locate Traps 1 | . . . 1 . . . . . . . . . . . . . . . . . . . . . . . . . Zone Layout 1 | . . . . . . . . . . . . . . . 1 . . . . . . . . . . . . . Security Stations 2 | . . . . . 1 . . . . . . . . 1 . . . . . . . . . . . . . . Release Object 2 | . . . . . . 2 . . . . . . . . . . . . . . . . . . . . . . Fabricator Hacks 3 | . . . . . . . . . . . 1 . . . . . . . . 1 . . . 1 . . . . Network Status 2 | . . . . . . . . . . . 1 . . . . . . . . . . . . 1 . . . . Load Schematic 1 | . . . . . . . . . . . . . . . . . . . . 1 . . . . . . . . Repair Station Hacks 3 | . . . 2 . . . . . . . . . . . . . . . . . . 1 . . . . . . Scan Component 2 | . . . 1 . . . . . . . . . . . . . . . . . . 1 . . . . . . Repair 1 | . . . 1 . . . . . . . . . . . . . . . . . . . . . . . . . Recycling Unit Hacks 4 | . 2 . . . . 2 . . . . . . . . . . . . . . . . . . . . . . Retrieve Matter 2 | . 2 . . . . . . . . . . . . . . . . . . . . . . . . . . . Retrieve Components 2 | . . . . . . 2 . . . . . . . . . . . . . . . . . . . . . . Scanalyzer 21 | . . . 4 . . . 7 . . . . . 3 . 3 . . . . . . 1 . 3 . . . . Insert Component 4 | . . . . . . . 1 . . . . . 1 . 1 . . . . . . . . 1 . . . . Analyze 7 | . . . . . . . 2 . . . . . 2 . 1 . . . . . . . . 2 . . . . Retrieve Study 10 | . . . 4 . . . 4 . . . . . . . 1 . . . . . . 1 . . . . . . Garrison Access Hacks 16 | . . . . 1 . . 2 . 1 . 2 . 1 . 1 . . . . 2 . 3 . 1 . 2 . . Unlock Access 9 | . . . . 1 . . . . 1 . 1 . 1 . . . . . . 1 . 2 . 1 . 1 . . Seal Access 7 | . . . . . . . 2 . . . 1 . . . 1 . . . . 1 . 1 . . . 1 . . Unauthorized Hacks 22 | . 10 . 3 . . 4 . . 1 . 1 . . . . . . . . . . 1 . 2 . . . . Terminals 10 | . 8 . 1 . . . . . . . . . . . . . . . . . . 1 . . . . . . Botnet 1 | . . . 1 . . . . . . . . . . . . . . . . . . . . . . . . . Operators 3 | . 2 . . . . . . . . . . . . . . . . . . . . 1 . . . . . . Skim 6 | . 6 . . . . . . . . . . . . . . . . . . . . . . . . . . . Fabricators 4 | . . . . . . . . . 1 . 1 . . . . . . . . . . . . 2 . . . . Liberate 3 | . . . . . . . . . 1 . 1 . . . . . . . . . . . . 1 . . . . Fabnet 1 | . . . . . . . . . . . . . . . . . . . . . . . . 1 . . . . Repair Stations . | . . . . . . . . . . . . . . . . . . . . . . . . . . . . . Recycling Units 8 | . 2 . 2 . . 4 . . . . . . . . . . . . . . . . . . . . . . Reject 1 | . . . . . . 1 . . . . . . . . . . . . . . . . . . . . . . Mask 1 | . . . . . . 1 . . . . . . . . . . . . . . . . . . . . . . Tunnel 6 | . 2 . 2 . . 2 . . . . . . . . . . . . . . . . . . . . . . Scanalyzers . | . . . . . . . . . . . . . . . . . . . . . . . . . . . . . Garrison Access . | . . . . . . . . . . . . . . . . . . . . . . . . . . . . . Data Cores Recovered 4 | . . . . . . . 1 . . . 1 . . . 1 . . . . . . . . . . 1 . . Used 1 | . . . . . . . . . . . . . . . 1 . . . . . . . . . . . . . Hacking Detections 72 | . 6 . 8 5 2 4 2 . 4 2 5 1 2 . 6 . . . . 3 2 7 2 3 . 5 3 . Full Trace Events 10 | . 2 . . . 1 . 1 . . . . . 1 . . . . . . 1 . 1 1 . . 1 1 . Feedback Events 2 | . . . . . . . . . . . . . . . . . . . . . . 1 . . . 1 . . Corruption 2 | . . . . . . . . . . . . . . . . . . . . . . 1 . . . 1 . . Feedback Blocked . | . . . . . . . . . . . . . . . . . . . . . . . . . . . . . Robot Schematics Acquired . | . . . . . . . . . . . . . . . . . . . . . . . . . . . . . Robots Built . | . . . . . . . . . . . . . . . . . . . . . . . . . . . . . Authchips . | . . . . . . . . . . . . . . . . . . . . . . . . . . . . . Time . | . . . . . . . . . . . . . . . . . . . . . . . . . . . . . Total Robot Build Rating . | . . . . . . . . . . . . . . . . . . . . . . . . . . . . . Part Schematics Acquired 4 | . . . . . . . 1 . . . . . 1 . 1 . . . . . . . . 1 . . . . Parts Built . | . . . . . . . . . . . . . . . . . . . . . . . . . . . . . Authchips . | . . . . . . . . . . . . . . . . . . . . . . . . . . . . . Time . | . . . . . . . . . . . . . . . . . . . . . . . . . . . . . Total Part Build Rating . | . . . . . . . . . . . . . . . . . . . . . . . . . . . . . Part Studies Acquired 10 | . . . 4 . . . 4 . . . . . . . 1 . . . . . . 1 . . . . . . Parts Repaired 1 | . . . 1 . . . . . . . . . . . . . . . . . . . . . . . . . Time 26 | . . . 26 . . . . . . . . . . . . . . . . . . . . . . . . . Parts Recycled . | . . . . . . . . . . . . . . . . . . . . . . . . . . . . . Recycled Matter . | . . . . . . . . . . . . . . . . . . . . . . . . . . . . . Retrieved Matter 193 | . 193 . . . . . . . . . . . . . . . . . . . . . . . . . . . Retrieved Components 16 | . . . . . . 16 . . . . . . . . . . . . . . . . . . . . . . Parts Scanalyzed 4 | . . . . . . . 1 . . . . . 1 . 1 . . . . . . . . 1 . . . . Part Schematics Acquired 4 | . . . . . . . 1 . . . . . 1 . 1 . . . . . . . . 1 . . . . Parts Damaged 1 | . . . . . . . . . . . . . 1 . . . . . . . . . . . . . . . Bothacking | -11 -10 -10 -9 -9 -9 -9 -7 -7 -7 -7 -7 -7 -6 -6 -5 -5 -5 -5 -4 -4 -4 -4 -4 -3 -3 -2 -2 -1 ------------ Run | Yrd Mat Min Mat Sto Gar Rec Fac Was Fac Gar Fac Gar Fac Gar Fac Upp Upp War Pro Fac Gar Fac Gar Res Gar Res Gar Acc Used RIF Installer 10 | . . . . . 1 . . . . 1 . 1 . 1 . . . . . . 2 . 1 . 1 . 2 . Coupler Efficiency 2 | . . . . . . . . . . . . . . . . . . . . . 2 . . . . . . . Code Merge 1 | . . . . . . . . . . . . . . . . . . . . . . . . . . . 1 . Robot Detection 1 | . . . . . . . . . . . . 1 . . . . . . . . . . . . . . . . Watcher Feeds 1 | . . . . . . . . . . . . . . . . . . . . . . . 1 . . . . . Patrol Navigation 1 | . . . . . . . . . . . . . . . . . . . . . . . . . 1 . . . Program Shield 1 | . . . . . . . . . . 1 . . . . . . . . . . . . . . . . . . Autooverride 1 | . . . . . . . . . . . . . . 1 . . . . . . . . . . . . . . Autoassimilate 2 | . . . . . . 1 . . . . . . . . . . . . . . . . . . . . 1 . Robots Hacked 153 | . . . . . . . . 5 . 8 3 2 7 6 16 2 . . . 2 10 6 17 13 5 13 16 22 Non-combat 13 | . . . . . . . . . . . 1 . . . 3 . . . . 2 . 1 1 5 . . . . Combat 140 | . . . . . . . . 5 . 8 2 2 7 6 13 2 . . . . 10 5 16 8 5 13 16 22 Autooverrided 17 | . . . . . . . . . . . . . . . 1 . . . . . 2 2 1 1 1 2 2 5 Autoassimilated 26 | . . . . . . . . . . 2 . . 1 2 4 1 . . . . . . 2 1 1 1 3 8 Robot Hacks Applied 132 | . . . . . . . . 6 . 7 7 2 7 4 12 1 . . . 3 9 6 15 14 3 12 13 11 parse_system 4 | . . . . . . . . 1 . . . . 1 . . . . . . . . . . . . . 1 1 drop_inventory 3 | . . . . . . . . . . . . . . . . . . . . . . . . 3 . . . . ignore_parts 1 | . . . . . . . . . . . . . . . . . . . . . . . . 1 . . . . purge_threat 3 | . . . . . . . . . . . 3 . . . . . . . . . . . . . . . . . map_route 6 | . . . . . . . . . . . . . . . 2 . . . . 3 . 1 . . . . . . ignore_targets 5 | . . . . . . . . 5 . . . . . . . . . . . . . . . . . . . . find_garrison 6 | . . . . . . . . . . . 1 . . . 1 . . . . . . 1 . 2 . 1 . . overload_power 2 | . . . . . . . . . . . . . . . 1 . . . . . 1 . . . . . . . amplify_resonance 32 | . . . . . . . . . . 3 . 1 3 . 5 . . . . . 4 1 4 3 1 1 2 4 reboot_system 1 | . . . . . . . . . . . . . . . . . . . . . . . 1 . . . . . overwrite_iff 11 | . . . . . . . . . . . . . 2 . . . . . . . 1 . 2 2 . . . 4 formatsys_low 2 | . . . . . . . . . . . 1 . . . 1 . . . . . . . . . . . . . formatsys_high 55 | . . . . . . . . . . 4 2 1 1 4 2 1 . . . . 3 3 8 3 1 10 10 2 formatsys_deep 1 | . . . . . . . . . . . . . . . . . . . . . . . . . 1 . . . Relay Couplers Released 132 | . . . . . 19 . 1 . . 13 3 15 . 16 5 . . . . 2 14 8 15 . 4 2 15 . Machine Destruction 117 | . . . . . 19 . 1 . . 13 3 15 . 12 2 . . . . 2 14 4 11 . 4 2 15 . Programmers 15 | . . . . . . . . . . . . . . 4 3 . . . . . . 4 4 . . . . . Attached 50 | . . . . . . . . 1 . 2 4 . 2 1 5 . . . . 4 2 4 3 3 4 5 4 6 Merged Code Value 9 | . . . . . . . . . . . . . . . . . . . . . . . . . . . 9 . Fabnet Peak Effective % . | . . . . . . . . . . . . . . . . . . . . . . . . . . . . . Robots Rewired 31 | . . . . . 2 8 . . . 2 . . . 16 . . . . . . 2 . . . . 1 . . Allies Hacked 4 | . . . . . . . 2 . . . . . . . . . . . . 1 . . . 1 . . . . Hacks Repelled . | . . . . . . . . . . . . . . . . . . . . . . . . . . . . . Allies | -11 -10 -10 -9 -9 -9 -9 -7 -7 -7 -7 -7 -7 -6 -6 -5 -5 -5 -5 -4 -4 -4 -4 -4 -3 -3 -2 -2 -1 -------- Run | Yrd Mat Min Mat Sto Gar Rec Fac Was Fac Gar Fac Gar Fac Gar Fac Upp Upp War Pro Fac Gar Fac Gar Res Gar Res Gar Acc Total Allies 162 | . . . . . 2 8 . . . 9 5 5 5 22 8 2 3 . . . 8 4 13 6 6 19 16 21 Largest Group 14 | . . . . . 2 8 4 . . 7 7 5 3 14 8 3 5 5 2 1 5 4 7 6 1 6 6 7 Highest-Rated Group 393 | . . . . . 48 105 41 . . 147 201 137 80 290 244 255 281 281 206 64 231 210 335 367 119 393 370 387 Highest-Rated Ally 142 | . . . . . 24 27 15 . . 39 39 49 49 32 142 142 142 142 142 64 49 56 111 111 119 119 69 119 Total Orders 14 | . . . . . . 5 2 . . . . 2 . . . . . . . . 2 1 2 . . . . . STAY 9 | . . . . . . 4 1 . . . . 1 . . . . . . . . 1 1 1 . . . . . FOLLOW 5 | . . . . . . 1 1 . . . . 1 . . . . . . . . 1 . 1 . . . . . Ally Attacks 854 | . . . . . 8 27 16 . . 32 72 49 52 65 59 12 14 . 6 5 25 20 54 50 38 47 103 100 Total Damage 26903 | . . . . . 229 382 259 . . 512 1043 882 809 2042 2438 561 547 . 273 186 831 653 1757 1731 1615 1810 4088 4255 Kills 186 | . . . . . 4 10 . . . 3 12 9 7 13 25 1 5 . 1 2 5 3 7 12 19 12 22 14 Allies Corrupted 15 | . . . . . . . . . . . . . . 1 . . . . . . . . 2 2 1 2 . 7 Allies Melted 3 | . . . . . . . . . . . . . . 1 . . . . . . . . . . 1 . 1 . X0-1V1 Amusement Gains 321 | . 5 . 15 . 30 63 5 . 20 . 20 . . 20 20 . . 60 . 55 . 8 . . . . . . Good Acts 191 | . . 4 6 8 7 5 1 . 1 13 2 8 10 10 7 2 3 . 9 8 13 10 4 5 12 14 14 15 Bad Acts 114 | . . 8 1 1 . 7 5 2 3 6 2 1 5 4 7 5 2 . 4 2 7 5 3 11 3 7 5 8 Intel | -11 -10 -10 -9 -9 -9 -9 -7 -7 -7 -7 -7 -7 -6 -6 -5 -5 -5 -5 -4 -4 -4 -4 -4 -3 -3 -2 -2 -1 ------- Run | Yrd Mat Min Mat Sto Gar Rec Fac Was Fac Gar Fac Gar Fac Gar Fac Upp Upp War Pro Fac Gar Fac Gar Res Gar Res Gar Acc Active Infowar (turns) 4374 | 5 1275 . . . . . . . . . . . . . . . . . . . . 191 46 . . 698 1245 914 Optics 2854 | . . . . . . . . . . . . . . . . . . . . . . 191 46 . . 458 1245 914 Seismic 1280 | 5 1275 . . . . . . . . . . . . . . . . . . . . . . . . . . . Jamming 416 | . . . . . . . . . . . . . . . . . . . . . . . . . . 389 26 1 Robot Analysis Total 5 | . 1 . 3 . . . 1 . . . . . . . . . . . . . . . . . . . . . Derelict Logs Recovered 5 | . . 1 . . . . . . . . . . . . . 2 1 . 1 . . . . . . . . . Drone Launches . | . . . . . . . . . . . . . . . . . . . . . . . . . . . . . Drone Recoveries . | . . . . . . . . . . . . . . . . . . . . . . . . . . . . . Exploration | -11 -10 -10 -9 -9 -9 -9 -7 -7 -7 -7 -7 -7 -6 -6 -5 -5 -5 -5 -4 -4 -4 -4 -4 -3 -3 -2 -2 -1 ------------- Run | Yrd Mat Min Mat Sto Gar Rec Fac Was Fac Gar Fac Gar Fac Gar Fac Upp Upp War Pro Fac Gar Fac Gar Res Gar Res Gar Acc Turns Passed 28553 | 30 1489 582 1499 670 1239 2283 1716 96 740 1947 661 983 849 1955 1848 888 618 117 845 1020 1150 567 576 583 650 755 1245 952 Spaces Moved 17601 | 5 789 423 758 260 583 1038 1079 74 623 876 442 527 567 1017 740 325 364 73 354 718 844 829 677 679 363 1019 1019 536 Core 211 | . . . . . . . . . . . . . . . . . . . . . . . . . . . . 211 Treads 8297 | . 789 1 654 260 583 852 773 . 62 239 8 75 175 149 214 13 364 73 224 685 752 36 606 . . 422 288 . Legs 4165 | 5 . . . . . 186 . . . 361 206 423 . 717 353 287 . . 33 . 79 . 44 679 230 . 325 237 Wheels 816 | . . 422 104 . . . 1 . . 61 228 . . . . . . . . . . . . . . . . . Hover 1917 | . . . . . . . 305 74 561 10 . 29 . . . . . . . 33 . 100 . . . 311 406 88 Flight 2195 | . . . . . . . . . . 205 . . 392 151 173 25 . . 97 . 13 693 27 . 133 286 . . Fastest Speed 28 | 120 160 115 90 160 160 150 92 102 92 70 70 135 75 75 161 192 147 147 50 74 74 38 38 38 28 28 36 50 Average Speed 114 | 120 160 115 151 160 160 162 138 102 103 135 110 135 93 137 198 226 152 147 106 83 84 45 38 38 86 33 83 122 Slowest Speed 330 | 120 160 240 160 160 160 280 215 102 119 330 185 135 135 221 221 281 218 147 147 143 155 96 38 38 107 36 192 250 Overloaded Moves . | . . . . . . . . . . . . . . . . . . . . . . . . . . . . . Propulsion Burnouts . | . . . . . . . . . . . . . . . . . . . . . . . . . . . . . Robots Hopped 13 | . . . . . . . . . . . . . 7 2 . . . . . . . . . . 4 . . . Potential Cave-ins 3 | . . . . . . . . . . . . . . . . . 2 . . . . . . . . . . 1 Cave-ins Triggered . | . . . . . . . . . . . . . . . . . . . . . . . . . . . . . Exploration Rate (%) 53 | 2 93 89 73 67 78 96 25 68 25 89 16 82 17 85 23 65 76 16 55 22 89 21 68 22 44 25 97 18 Regions Visited 28 Branch Regions 7 Pre-discovered Areas 9 | . 3 . 2 . . 2 . . . . . . . . . . 2 . . . . . . . . . . . Known Exits Taken 12 | . . 1 1 1 . . . . 1 . 1 . 1 . . 1 . . 1 1 . 1 . 1 . 1 . . Unknown Exits Taken 6 | 1 1 . . . . 1 . . . . . . . . 1 . 1 1 . . . . . . . . . . Scrap Searched 5 | . . 1 . . . . . . . . . . . . . 2 2 . . . . . . . . . . . Spaces Dug 263 | . . . . 11 9 . 1 . 1 31 2 2 1 12 34 3 1 . 1 14 108 9 1 3 12 2 1 4 Terrain Destroyed 1506 | . 65 27 8 20 100 . 33 1 15 91 21 20 12 25 162 9 50 . 7 172 409 22 13 35 92 22 37 38 Melee 50 | . . . . . 9 . 1 . . 2 . 1 1 4 . . . . . 11 9 8 1 3 . . . . Projectile 466 | . . . . . . . 8 1 15 14 11 19 11 21 60 9 9 . 7 56 47 14 12 6 49 22 37 38 AOE 990 | . 65 27 8 20 91 . 24 . . 75 10 . . . 102 . 41 . . 105 353 . . 26 43 . . . Terrain Rammed . | . . . . . . . . . . . . . . . . . . . . . . . . . . . . . Walls Destroyed . | . . . . . . . . . . . . . . . . . . . . . . . . . . . . . Machines Disabled . | . . . . . . . . . . . . . . . . . . . . . . . . . . . . . Actions | -11 -10 -10 -9 -9 -9 -9 -7 -7 -7 -7 -7 -7 -6 -6 -5 -5 -5 -5 -4 -4 -4 -4 -4 -3 -3 -2 -2 -1 --------- Run | Yrd Mat Min Mat Sto Gar Rec Fac Was Fac Gar Fac Gar Fac Gar Fac Upp Upp War Pro Fac Gar Fac Gar Res Gar Res Gar Acc Total 23699 | 14 919 463 944 383 746 1535 1208 88 688 1471 567 721 757 1351 1034 464 407 81 806 984 1151 960 927 974 587 1354 1377 738 Wait 2904 | . 37 . 56 37 13 286 42 1 13 355 53 94 78 76 165 119 22 7 419 67 118 45 124 214 83 151 207 22 Move 17556 | 4 788 422 757 260 582 1037 1079 73 622 875 441 526 555 1013 739 324 363 72 353 718 843 828 676 678 355 1019 1018 536 Hop 9 | . . . . . . . . . . . . . 5 1 . . . . . . . . . . 3 . . . Pick Up 253 | 1 7 3 17 7 6 10 12 . 3 9 4 8 5 20 10 1 . . 5 10 23 7 14 9 4 23 34 1 Fast Attach 96 | 1 4 1 6 2 . 3 3 1 . 8 . 1 6 3 3 . . . . 9 2 6 3 8 5 9 3 9 Attach 82 | . 2 5 4 . . 2 3 1 . 4 2 1 2 6 4 2 . . . 6 4 1 2 4 7 8 3 9 Detach 32 | . 1 . 1 . . 2 2 1 . 2 . . . 6 1 . 1 . . 3 2 . . . 3 2 3 2 Swap 184 | . 9 2 17 9 24 6 5 2 . 6 8 1 9 4 9 2 3 . . 14 8 4 8 5 8 10 7 4 Drop 261 | . 6 . 13 8 7 18 12 1 5 19 3 5 5 12 11 1 . . 10 15 20 11 10 12 4 21 26 6 Fire 1721 | 8 52 29 72 55 40 43 48 8 45 86 55 73 55 135 92 15 18 2 19 124 108 40 74 40 106 90 68 121 Melee 289 | . . . . 4 27 4 2 . . 73 . 11 37 44 . . . . . 18 21 17 13 3 1 14 . . Ram 9 | . . . . . . . . . . 1 . . . . . . . . . . . . . . . . . 8 Kick 12 | . . . . . . . . . . 1 1 1 . . . . . . . . . . . 1 1 . . 7 Crush 32 | . 13 . 1 1 . 12 . . . . . . . . . . . . . . . . . . . 4 1 . Escape Stasis 46 | . . 1 . . . . . . . 20 . . . 7 . . . . . . . . . . 5 . . 13 Rewire 205 | . . . . . 47 104 . . . 12 . . . 24 . . . . . . 2 1 3 . 2 3 7 . Trap . | . . . . . . . . . . . . . . . . . . . . . . . . . . . . . Miscellaneous 8 | . . . . . . 8 . . . . . . . . . . . . . . . . . . . . . . Route ------- -11/Scrapyard -10/Materials (discovered 5 exits: *Mat x3 / [*Min] / *Sub) -10/Mines (discovered 2 exits: *Mat / *Sub) -9/Materials (discovered 5 exits: *Mat x2 / *Min x2 / *Sto) -9/Storage (discovered 3 exits: *Mat / Rec / Gar) -9/Garrison (discovered 3 exits: *Rec x3) -9/Recycling -7/Factory -7/Waste -7/Factory (discovered 2 exits: *Fac / Gar) -7/Garrison (discovered 4 exits: *Fac x4) -7/Factory (discovered 3 exits: *Fac / [*Low] / Gar) -7/Garrison (discovered 3 exits: *Fac x3) -6/Factory (discovered 2 exits: *Fac / Gar) -6/Garrison (discovered 3 exits: *Fac x3) -5/Factory (discovered 2 exits: Fac / *Upp) -5/Upper Caves -5/Upper Caves (discovered 2 exits: Fac / [*War]) -5/Warlord -4/Proximity Caves -4/Factory (discovered 2 exits: Res / Gar) -4/Garrison (discovered 4 exits: *Fac x4) -4/Factory (discovered 3 exits: Res / Gar / Gar) -4/Garrison (discovered 2 exits: *Res x2) -3/Research (discovered 2 exits: [*Arm] / Gar) -3/Garrison -2/Research (discovered 2 exits: Acc / Gar) -2/Garrison (discovered 3 exits: *Acc x3) -1/Access (discovered 1 exit: [*Sur]) History --------- Turn | Location | Event 24 | -11/Scrapyard | Discovered new exit (range 3) 31 | -11/Scrapyard | Entered Materials 242 | -10/Materials | Central database locked down 300 | -10/Materials | Destroyed 7 combat bots 307 | -10/Materials | Build established: Mutant 436 | -10/Materials | Discovered new exit (range 16) 580 | -10/Materials | Discovered new exit (range 7) 1108 | -10/Materials | Discovered new exit (range 16) 1188 | -10/Materials | Learned Storage emergency access door positions 1227 | -10/Materials | Identified exit to Materials 1279 | -10/Materials | Learned 4 Materials zone layouts 1290 | -10/Materials | Learned location of 1 exit from Storage 1292 | -10/Materials | Identified exit to Subcaves 1292 | -10/Materials | Learned location of 1 exit from Materials 1293 | -10/Materials | Learned 4 Recycling zone layouts 1303 | -10/Materials | Learned Storage stockpile data 1304 | -10/Materials | Prayed at D.C.S.S. Altar Unit 1321 | -10/Materials | Learned 2 Mines zone layouts 1520 | -10/Materials | Entered Mines 1551 | -10/Mines | X0-1V1 upgraded hostiles (x1) 1567 | -10/Mines | Core integrity fell below 50% 1612 | -10/Mines | X0-1V1 vaporized surrounding terrain (radius 15) 1619 | -10/Mines | Lost 5 parts (1p2n2w) 1732 | -10/Mines | X0-1V1 sent hostile G-34 Mercenary (x3) 1820 | -10/Mines | Core integrity restored by X0-1V1 (+65) 1845 | -10/Mines | Discovered exit to Materials (range 5) 1859 | -10/Mines | Learned 2 Materials zone layouts 1939 | -10/Mines | Found a Scrap Suit stashed away for nefarious purposes 2016 | -10/Mines | Discovered exit to Subcaves (range 13) 2102 | -10/Mines | Entered Materials 2102 | -9/Materials | Evolved 2 slots: Propulsion x1, Weapon x1 2103 | -9/Materials | Identified exit to Storage 2104 | -9/Materials | Identified exit to Mines 2105 | -9/Materials | Identified exit to Materials 2112 | -9/Materials | Inventory capacity permanently improved by X0-1V1 (+2; -200 max core) 2302 | -9/Materials | Destroyed 7 combat bots 2402 | -9/Materials | Build established: Gunner 2434 | -9/Materials | Discovered exit to Mines (range 16) 2565 | -9/Materials | Utility slot count permanently improved by X0-1V1 (+1) 2636 | -9/Materials | X0-1V1 sent hostile S-10 Pest (x3) 2665 | -9/Materials | X0-1V1 revealed exit location to -8/Materials 2839 | -9/Materials | Build established: Tank 2949 | -9/Materials | X0-1V1 foreshadows a heat wave 3118 | -9/Materials | Ambient heat levels rising (+10) 3325 | -9/Materials | Ambient heat levels rising (+10) 3447 | -9/Materials | Repaired Grenade Launcher 3468 | -9/Materials | Ambient heat levels falling (-10) 3601 | -9/Materials | Entered Storage 3602 | -9/Storage | Identified exit to Recycling 3705 | -9/Storage | Core integrity permanently improved by X0-1V1 (+350) 3751 | -9/Storage | Build established: Gunner 3839 | -9/Storage | X0-1V1 activates XOMVISION 3924 | -9/Storage | X0-1V1 revealed exit location to -8/Materials 3943 | -9/Storage | Garrison activated, responded to threat 3961 | -9/Storage | X0-1V1 whisked you away to safety 4271 | -9/Storage | Identified exit to Garrison 4271 | -9/Storage | Entered Garrison 4323 | -9/Garrison | Triggered checkpoint 4427 | -9/Garrison | Triggered checkpoint 4445 | -9/Garrison | X0-1V1 activates XOMVISION 4447 | -9/Garrison | Garrison Relay disabled 4504 | -9/Garrison | Learned Recycling security intel 4539 | -9/Garrison | Triggered checkpoint 4570 | -9/Garrison | Triggered checkpoint 4650 | -9/Garrison | Discovered exit to Recycling (range 8) 4672 | -9/Garrison | Installed Relay Interface Framework 4771 | -9/Garrison | Triggered checkpoint 4965 | -9/Garrison | Triggered checkpoint 4971 | -9/Garrison | Garrison Relay disabled 5050 | -9/Garrison | Discovered exit to Recycling (range 13) 5111 | -9/Garrison | Triggered checkpoint 5186 | -9/Garrison | Garrison Relay disabled 5189 | -9/Garrison | Triggered checkpoint 5264 | -9/Garrison | Garrison Relay disabled 5411 | -9/Garrison | Discovered exit to Recycling (range 5) 5479 | -9/Garrison | Phase Generator disabled 5510 | -9/Garrison | Entered Recycling 5511 | -9/Recycling | Identified exit to Scraptown 5775 | -9/Recycling | Build established: Tank 5859 | -9/Recycling | Discovered new exit (range 15) 5921 | -9/Recycling | Scanned before Scraplab entrance 5944 | -9/Recycling | Entered Scraplab 6054 | -9/Recycling | X0-1V1 vaporized surrounding terrain (radius 17) 6848 | -9/Recycling | X0-1V1 rewrote Mercenary 2b IFF filter 7000 | -9/Recycling | Angered Scraplab inhabitants 7012 | -9/Recycling | Found Prototype Device 7012 | -9/Recycling | Identified Scrap Engine 7076 | -9/Recycling | X0-1V1 rewrote Commando 2a IFF filter 7256 | -9/Recycling | Expanded RIF knowledge: Autoassimilate 7613 | -9/Recycling | X0-1V1 mutated your Weapon slot to Propulsion slot 7705 | -9/Recycling | Build established: Commander-Construct 7793 | -9/Recycling | Entered Factory 7793 | -7/Factory | Accompanied by 4 allies 7793 | -7/Factory | Evolved 4 slots: Propulsion x2, Utility x1, Weapon x1 8106 | -7/Factory | Garrison activated, responded to threat 8157 | -7/Factory | Lost 3 allies 8403 | -7/Factory | Build established: Construct 8627 | -7/Factory | Discovered new exit (range 10) 8876 | -7/Factory | X0-1V1 added 0b10 threat records associated with you (considerable) 8993 | -7/Factory | Search patrols dispatched 9184 | -7/Factory | X0-1V1 sent hostile B-36 Bruiser (x2) 9393 | -7/Factory | First assault squad dispatched 9509 | -7/Factory | Manually triggered Chute Trap 9509 | -7/Factory | Sucked down chute 9509 | -7/Factory | Entered Waste 9524 | -7/Waste | EMP discharged 9525 | -7/Waste | Spotted C-40 Crusher 9530 | -7/Waste | Spotted C-40 Crusher 9534 | -7/Waste | Spotted C-40 Crusher 9543 | -7/Waste | Spotted C-40 Crusher 9551 | -7/Waste | Spotted C-40 Crusher 9572 | -7/Waste | X0-1V1 vaporized surrounding terrain (radius 19) 9583 | -7/Waste | Found Prototype Processor 9583 | -7/Waste | Identified Exp. Targeting Computer 9586 | -7/Waste | Discovered new exit (range 16) 9605 | -7/Waste | Entered Factory 9937 | -7/Factory | X0-1V1 sent someone to keep an eye on you 10066 | -7/Factory | X0-1V1 sent you into danger 10087 | -7/Factory | Discovered new exit (range 6) 10139 | -7/Factory | Destroyed 10 combat bots 10332 | -7/Factory | Identified exit to Garrison 10345 | -7/Factory | Entered Garrison 10369 | -7/Garrison | Triggered checkpoint 10427 | -7/Garrison | Garrison Relay disabled 10483 | -7/Garrison | Triggered checkpoint 10550 | -7/Garrison | Lost 3 parts (1p2n) 10553 | -7/Garrison | Destroyed 9 combat bots 10724 | -7/Garrison | X0-1V1 mutated your Propulsion slot to Utility slot 10851 | -7/Garrison | Triggered checkpoint 10864 | -7/Garrison | X0-1V1 turns hostiles against one another 10902 | -7/Garrison | Garrison Relay disabled 10940 | -7/Garrison | Discovered new exit (range 8) 10953 | -7/Garrison | Triggered checkpoint 10983 | -7/Garrison | Discovered new exit (range 3) 11040 | -7/Garrison | Triggered checkpoint 11051 | -7/Garrison | P-60 Hacker assimilated allied Trooper 4b 11059 | -7/Garrison | Triggered checkpoint 11062 | -7/Garrison | Triggered checkpoint 11290 | -7/Garrison | Garrison Relay disabled 11377 | -7/Garrison | Discovered new exit (range 10) 11408 | -7/Garrison | X0-1V1 activates XOMVISION 11486 | -7/Garrison | Build established: Commander-Construct 11534 | -7/Garrison | Discovered new exit (range 7) 11595 | -7/Garrison | Triggered checkpoint 11753 | -7/Garrison | Expanded RIF knowledge: Program Shield 11779 | -7/Garrison | Garrison Relay disabled 12178 | -7/Garrison | X0-1V1 destroyed Phase Generator 12178 | -7/Garrison | Phase Generator disabled 12221 | -7/Garrison | X0-1V1 activates XOMVISION 12292 | -7/Garrison | Entered Factory 12292 | -7/Factory | Accompanied by 6 allies 12569 | -7/Factory | Discovered new exit (range 15) 12667 | -7/Factory | Discovered new exit (range 12) 12692 | -7/Factory | First assault squad dispatched 12810 | -7/Factory | Identified exit to Garrison 12953 | -7/Factory | Entered Garrison 12953 | -7/Garrison | Accompanied by 5 allies 12977 | -7/Garrison | Triggered checkpoint 12997 | -7/Garrison | Garrison Relay disabled 13044 | -7/Garrison | Triggered checkpoint 13085 | -7/Garrison | Triggered checkpoint 13141 | -7/Garrison | Garrison Relay disabled 13174 | -7/Garrison | Core integrity restored by X0-1V1 (+144) 13228 | -7/Garrison | Triggered checkpoint 13315 | -7/Garrison | Discovered new exit (range 12) 13342 | -7/Garrison | Expanded RIF knowledge: Robot Detection 13454 | -7/Garrison | Discovered new exit (range 9) 13457 | -7/Garrison | Build established: Bothacker-Construct 13471 | -7/Garrison | Triggered checkpoint 13509 | -7/Garrison | X0-1V1 upgraded ally (x2) 13525 | -7/Garrison | X0-1V1 opened Sealed Heavy Doors 13527 | -7/Garrison | Rescued a captive Derelict 13528 | -7/Garrison | Rescued a captive Derelict 13544 | -7/Garrison | Garrison Relay disabled 13567 | -7/Garrison | X0-1V1 sent you into danger 13627 | -7/Garrison | Triggered checkpoint 13642 | -7/Garrison | Identified exit to Factory 13642 | -7/Garrison | X0-1V1 revealed exit location to -6/Factory 13834 | -7/Garrison | Garrison Relay disabled 13936 | -7/Garrison | Entered Factory 13936 | -6/Factory | Accompanied by 2 allies 13936 | -6/Factory | Evolved 2 slots: Power x1, Propulsion x1 14258 | -6/Factory | X0-1V1 activates XOMVISION 14286 | -6/Factory | First assault squad dispatched 14370 | -6/Factory | X0-1V1 mutated your Propulsion slot to Power slot 14447 | -6/Factory | X0-1V1 turns hostiles against one another 14465 | -6/Factory | Discovered new exit (range 16) 14662 | -6/Factory | X0-1V1 announced a LAN party 14785 | -6/Factory | Identified exit to Garrison 14785 | -6/Factory | Entered Garrison 14833 | -6/Garrison | Triggered checkpoint 14847 | -6/Garrison | Core integrity fell below 50% 14894 | -6/Garrison | Core integrity restored by X0-1V1 (+150) 14913 | -6/Garrison | Triggered checkpoint 14915 | -6/Garrison | Build established: Bothacker-Mutant 15198 | -6/Garrison | Garrison Relay disabled 15362 | -6/Garrison | Lost 3 allies 15534 | -6/Garrison | Spotted B-75 Beast 15549 | -6/Garrison | Triggered checkpoint 15549 | -6/Garrison | Triggered checkpoint 15557 | -6/Garrison | Triggered checkpoint 15626 | -6/Garrison | Lost 10 allies 15675 | -6/Garrison | Discovered new exit (range 12) 15695 | -6/Garrison | Triggered checkpoint 15845 | -6/Garrison | Build established: Bothacker-Construct 15885 | -6/Garrison | Expanded RIF knowledge: Autooverride 15911 | -6/Garrison | Garrison Relay disabled 15940 | -6/Garrison | Identified exit to Factory 15940 | -6/Garrison | X0-1V1 revealed exit location to -5/Factory 16032 | -6/Garrison | Core integrity restored by X0-1V1 (+260) 16187 | -6/Garrison | Build established: Botlord-Construct 16233 | -6/Garrison | Triggered checkpoint 16260 | -6/Garrison | Garrison Relay disabled 16425 | -6/Garrison | Triggered checkpoint 16525 | -6/Garrison | Spotted Executioner 16528 | -6/Garrison | Spotted Striker 16549 | -6/Garrison | Discovered exit to Factory (range 12) 16553 | -6/Garrison | Triggered checkpoint 16602 | -6/Garrison | X0-1V1 destroyed Phase Generator 16602 | -6/Garrison | Phase Generator disabled 16671 | -6/Garrison | Learned Factory security intel 16740 | -6/Garrison | Entered Factory 16740 | -5/Factory | Accompanied by 8 allies 16740 | -5/Factory | Evolved 2 slots: Propulsion x1, Utility x1 17121 | -5/Factory | X0-1V1 sent you to a vault 17126 | -5/Factory | Found Prototype Hackware 17340 | -5/Factory | First assault squad dispatched 17567 | -5/Factory | Discovered new exit (range 11) 17705 | -5/Factory | Cargo convoy interrupted 17716 | -5/Factory | X0-1V1 rewrote Sentinel 6a IFF filter 18138 | -5/Factory | High security lockdown imminent 18218 | -5/Factory | High security lockdown engaged 18287 | -5/Factory | Garrison activated, responded to threat 18514 | -5/Factory | Identified exit to Factory 18514 | -5/Factory | X0-1V1 revealed exit location to -4/Factory 18588 | -5/Factory | Entered Upper Caves 18588 | -5/Upper Caves | Accompanied by 1 ally 18736 | -5/Upper Caves | Spotted B-75 Beast 18752 | -5/Upper Caves | Destroyed B-75 Beast 18943 | -5/Upper Caves | Build established: Bothacker-Construct 19009 | -5/Upper Caves | Encountered a Warlord checkpoint 19020 | -5/Upper Caves | System corruption reached 10% 19151 | -5/Upper Caves | Attracted the attention of an 0b10 checkpoint 19184 | -5/Upper Caves | Learned Factory terminal intel 19213 | -5/Upper Caves | Identified exit to Upper Caves 19276 | -5/Upper Caves | X0-1V1 mutated your Utility slot to Propulsion slot 19408 | -5/Upper Caves | X0-1V1 rewrote Sentinel 6d IFF filter 19476 | -5/Upper Caves | Entered another Upper Caves area 19476 | -5/Upper Caves | Accompanied by 2 allies 19703 | -5/Upper Caves | X0-1V1 vaporized surrounding terrain (radius 24) 19706 | -5/Upper Caves | Entered an active Warlord outpost 19724 | -5/Upper Caves | Learned location of Extension (-4) 19724 | -5/Upper Caves | Learned Armory garrison access intel 19727 | -5/Upper Caves | A Commander dispatched an escort 19896 | -5/Upper Caves | Attracted the attention of an 0b10 checkpoint 19956 | -5/Upper Caves | Discovered new exit (range 15) 20094 | -5/Upper Caves | Entered Warlord 20094 | -5/Warlord | Accompanied by 5 allies 20095 | -5/Warlord | Commander's escort returned to base 20095 | -5/Warlord | Commander's escort returned to base 20095 | -5/Warlord | Commander's escort returned to base 20153 | -5/Warlord | RIF detected upon attempting to enter Warlord's base 20153 | -5/Warlord | Attacked by Warlord forces 20191 | -5/Warlord | Discovered new exit (range 12) 20211 | -5/Warlord | Entered Proximity Caves 20211 | -4/Proximity Caves | Accompanied by 2 allies 20473 | -4/Proximity Caves | X0-1V1 activates XOMVISION 20504 | -4/Proximity Caves | X0-1V1 revealed exit location to -4/Factory 20597 | -4/Proximity Caves | Spotted B-86 Titan 20614 | -4/Proximity Caves | Destroyed B-86 Titan 20647 | -4/Proximity Caves | Learned Research terminal intel 21015 | -4/Proximity Caves | X0-1V1 sent hostile B-60 Warrior (x1) 21056 | -4/Proximity Caves | Entered Factory 21056 | -4/Factory | Accompanied by 1 ally 21056 | -4/Factory | Evolved 2 slots: Utility x1, Weapon x1 21057 | -4/Factory | Loaded intel: 28 terminal locations 21621 | -4/Factory | Identified exit to Research 21621 | -4/Factory | X0-1V1 revealed exit location to -3/Research 21663 | -4/Factory | Found Quantum Capacitor 21700 | -4/Factory | Build established: Construct 21724 | -4/Factory | Spotted B-86 Titan 21941 | -4/Factory | Spotted B-86 Titan 21968 | -4/Factory | X0-1V1 activates XOMVISION 22036 | -4/Factory | Destroyed 7 combat bots 22056 | -4/Factory | First assault squad dispatched 22076 | -4/Factory | Identified exit to Garrison 22076 | -4/Factory | Entered Garrison 22118 | -4/Garrison | System corruption reached 10% 22208 | -4/Garrison | Triggered checkpoint 22212 | -4/Garrison | Garrison Relay disabled 22246 | -4/Garrison | Triggered checkpoint 22273 | -4/Garrison | Discovered new exit (range 6) 22314 | -4/Garrison | X0-1V1 mutated your Propulsion slot to Utility slot 22334 | -4/Garrison | Expanded RIF knowledge: Coupler Efficiency 22366 | -4/Garrison | Triggered checkpoint 22393 | -4/Garrison | Spotted B-86 Titan 22426 | -4/Garrison | Identified exit to Factory 22426 | -4/Garrison | X0-1V1 revealed exit location to -4/Factory 22452 | -4/Garrison | Core integrity fell below 50% 22480 | -4/Garrison | Destroyed B-86 Titan 22504 | -4/Garrison | Triggered checkpoint 22508 | -4/Garrison | X0-1V1 activates XOMVISION 22531 | -4/Garrison | Build established: Bothacker-Construct 22633 | -4/Garrison | Garrison Relay disabled 22670 | -4/Garrison | Triggered checkpoint 22766 | -4/Garrison | Triggered checkpoint 22810 | -4/Garrison | Expanded RIF knowledge: Coupler Efficiency 22823 | -4/Garrison | Garrison Relay disabled 22828 | -4/Garrison | Identified Exp. System Shield 22867 | -4/Garrison | Discovered exit to Factory (range 12) 22881 | -4/Garrison | X0-1V1 revealed exit location to -4/Factory 22938 | -4/Garrison | Build established: Botlord-Construct 23166 | -4/Garrison | Garrison Relay disabled 23178 | -4/Garrison | Triggered checkpoint 23226 | -4/Garrison | Entered Factory 23226 | -4/Factory | Accompanied by 1 ally 23333 | -4/Factory | Identified exit to Garrison 23425 | -4/Factory | X0-1V1 enhanced Transport squad support 23476 | -4/Factory | First assault squad dispatched 23499 | -4/Factory | X0-1V1 announced a LAN party 23520 | -4/Factory | Identified exit to Garrison 23549 | -4/Factory | Garrison activated, responded to threat 23645 | -4/Factory | Garrison activated, responded to threat 23650 | -4/Factory | System corruption reached 30% 23673 | -4/Factory | Core integrity restored by X0-1V1 (+221) 23724 | -4/Factory | X0-1V1 revealed exit location to -3/Research 23736 | -4/Factory | X0-1V1 activates XOMVISION 23793 | -4/Factory | Entered Garrison 23885 | -4/Garrison | Triggered checkpoint 23891 | -4/Garrison | Garrison Relay disabled 23925 | -4/Garrison | Triggered checkpoint 23935 | -4/Garrison | Triggered checkpoint 23940 | -4/Garrison | Triggered checkpoint 23965 | -4/Garrison | Spotted B-86 Titan 24004 | -4/Garrison | Allies destroyed B-86 Titan 24074 | -4/Garrison | Lost 6 allies 24097 | -4/Garrison | Core integrity restored by X0-1V1 (+351) 24108 | -4/Garrison | Discovered exit to Research (range 12) 24170 | -4/Garrison | Triggered checkpoint 24199 | -4/Garrison | Garrison Relay disabled 24212 | -4/Garrison | Garrison Relay disabled 24277 | -4/Garrison | Expanded RIF knowledge: Watcher Feeds 24327 | -4/Garrison | Discovered exit to Research (range 12) 24369 | -4/Garrison | Entered Research 24369 | -3/Research | Accompanied by 3 allies 24369 | -3/Research | Evolved 2 slots: Utility x2 24370 | -3/Research | Loaded intel: 20 terminal locations 24421 | -3/Research | Spotted B-86 Titan 24466 | -3/Research | Allies destroyed B-86 Titan 24476 | -3/Research | Lost 4 allies 24556 | -3/Research | X0-1V1 mutated your Utility slot to Weapon slot 24573 | -3/Research | Watched by a mysterious "MATRIX" hacker 24843 | -3/Research | Forcibly received Sfc. Transmogifier from X0-1V1 24854 | -3/Research | Discovered new exit (range 9) 24922 | -3/Research | Identified exit to Garrison 24945 | -3/Research | Cargo convoy interrupted 24945 | -3/Research | Spotted Executioner 24945 | -3/Research | Spotted Executioner 24949 | -3/Research | Spotted Executioner 24949 | -3/Research | Spotted Executioner 24952 | -3/Research | Entered Garrison 24998 | -3/Garrison | Triggered checkpoint 25007 | -3/Garrison | Lost 3 allies 25088 | -3/Garrison | Triggered checkpoint 25166 | -3/Garrison | Triggered checkpoint 25172 | -3/Garrison | Triggered checkpoint 25176 | -3/Garrison | Assimilated Heavy ARC 8a with formatsys_deep 25180 | -3/Garrison | Spotted B-86 Titan 25247 | -3/Garrison | Destroyed B-86 Titan 25287 | -3/Garrison | Assembled breached garrison interior 25323 | -3/Garrison | X0-1V1 sent allied Executioner (x1) 25339 | -3/Garrison | Core integrity fell below 50% 25362 | -3/Garrison | Destroyed 37 combat bots 25398 | -3/Garrison | Lost 9 parts (1p1n4u3w) 25419 | -3/Garrison | X0-1V1 sent you into danger 25476 | -3/Garrison | System corruption reached 10% 25521 | -3/Garrison | Lost 3 parts (1u2w) 25584 | -3/Garrison | Found Unknown Launcher 25588 | -3/Garrison | Discovered new exit (range 9) 25596 | -3/Garrison | Expanded RIF knowledge: Patrol Navigation 25602 | -3/Garrison | Entered Research 25602 | -2/Research | Evolved 2 slots: Propulsion x1, Utility x1 25639 | -2/Research | Identified exit to Access 25639 | -2/Research | X0-1V1 revealed exit location to -1/Access 25737 | -2/Research | Found Prototype Device 25737 | -2/Research | Identified Exp. EM Shield 25763 | -2/Research | Unknown Launcher reconfigured into Item Mimic 25791 | -2/Research | X0-1V1 sent allied Executioner (x2) 25869 | -2/Research | Lost 3 allies 25876 | -2/Research | X0-1V1 sent you to a vault 25979 | -2/Research | Discovered exit to Access (range 14) 26010 | -2/Research | Lost 4 allies 26102 | -2/Research | First assault squad dispatched 26136 | -2/Research | X0-1V1 rewrote Terminator 9a IFF filter 26163 | -2/Research | X0-1V1 tapped a No Entrance sign 26224 | -2/Research | X0-1V1 mutated your Weapon slot to Utility slot 26249 | -2/Research | System corruption reached 10% 26357 | -2/Research | Identified exit to Garrison 26357 | -2/Research | Entered Garrison 26378 | -2/Garrison | Expanded RIF knowledge: Autoassimilate 26404 | -2/Garrison | Rescued a captive Derelict 26405 | -2/Garrison | X0-1V1 destroyed Phase Generator 26405 | -2/Garrison | Phase Generator disabled 26427 | -2/Garrison | Garrison Relay disabled 26435 | -2/Garrison | Triggered checkpoint 26517 | -2/Garrison | Spotted B-90 Cyclops 26519 | -2/Garrison | Triggered checkpoint 26534 | -2/Garrison | Triggered checkpoint 26538 | -2/Garrison | Triggered checkpoint 26555 | -2/Garrison | Garrison Relay disabled 26559 | -2/Garrison | Triggered checkpoint 26569 | -2/Garrison | Discovered exit to Access (range 12) 26627 | -2/Garrison | Spotted B-90 Cyclops 26701 | -2/Garrison | Discovered exit to Access (range 13) 26725 | -2/Garrison | Triggered checkpoint 26733 | -2/Garrison | Garrison Relay disabled 26794 | -2/Garrison | X0-1V1 activates XOMVISION 26925 | -2/Garrison | Destroyed B-90 Cyclops 26936 | -2/Garrison | Triggered checkpoint 26982 | -2/Garrison | Destroyed B-90 Cyclops 27020 | -2/Garrison | Found Relay Coupler [Proto] 27022 | -2/Garrison | Found Relay Coupler [Proto] 27024 | -2/Garrison | Found Relay Coupler [Proto] 27025 | -2/Garrison | Found Relay Coupler [Proto] 27049 | -2/Garrison | P-80 Master assimilated allied Enforcer 9f 27099 | -2/Garrison | Discovered exit to Access (range 5) 27109 | -2/Garrison | Triggered checkpoint 27121 | -2/Garrison | Garrison Relay disabled 27144 | -2/Garrison | Expanded RIF knowledge: Code Merge 27416 | -2/Garrison | X0-1V1 rewrote Terminator 9h IFF filter 27602 | -2/Garrison | Entered Access 27602 | -1/Access | Accompanied by 4 allies 27602 | -1/Access | Evolved 2 slots: Utility x2 27771 | -1/Access | High security lockdown imminent 27809 | -1/Access | Lost 4 allies 27822 | -1/Access | X0-1V1 mutated your Utility slot to Propulsion slot 27851 | -1/Access | High security lockdown engaged 28017 | -1/Access | Found Prototype Device 28017 | -1/Access | Identified Exp. Transmission Jammer 28036 | -1/Access | Spotted Executioner 28036 | -1/Access | Spotted Striker 28108 | -1/Access | Scanned by Researcher 28116 | -1/Access | Lost 3 allies 28131 | -1/Access | System corruption reached 10% 28191 | -1/Access | Lost 4 parts (1p2u1w) 28237 | -1/Access | Spotted Executioner 28237 | -1/Access | Spotted Striker 28237 | -1/Access | Spotted Executioner 28237 | -1/Access | Spotted Executioner 28238 | -1/Access | Autoassimilated Executioner with RIF 28282 | -1/Access | Lost 3 parts (2u1w) 28300 | -1/Access | Spotted Executioner 28301 | -1/Access | X0-1V1 sent allied Executioner (x2) 28302 | -1/Access | Spotted Striker 28314 | -1/Access | Autoassimilated Striker with RIF 28323 | -1/Access | Lost 3 parts (1n2w) 28348 | -1/Access | Lost 9 allies 28374 | -1/Access | X0-1V1 whisked you away to safety 28400 | -1/Access | Lost 6 parts (3n2u1w) 28420 | -1/Access | Core integrity fell below 50% 28429 | -1/Access | X0-1V1 activates XOMVISION 28456 | -1/Access | X0-1V1 destroyed Energy Cycler 28456 | -1/Access | Energy Cycler disabled 28511 | -1/Access | Spotted Executioner 28511 | -1/Access | Spotted Striker 28511 | -1/Access | Spotted Executioner 28512 | -1/Access | Autoassimilated Executioner with RIF 28514 | -1/Access | Spotted Striker 28514 | -1/Access | Spotted Executioner 28514 | -1/Access | Spotted Executioner 28516 | -1/Access | Core integrity fell below 20% 28518 | -1/Access | X0-1V1 rescued you from certain death 28551 | -1/Access | Discovered new exit (range 5) 28554 | -1/Access | Destroyed by Striker with Compact Linear Accelerator Last Messages --------------- 28546_ Relay Coupler [Proto] destroyed. 28546_ K-01 Serf collects debris. 28546_ Enh. Optical Array destroyed. 28547_ Slammed into L-61 Swordsman. 28547_ Destabilizing: System corrupted (+1). 28547_ Penetrated by Slug. 28547_ Slug penetrates Wall. 28548_ Penetrated by Slug. 28548_ Slug penetrates Wall. 28548_ Penetrated by Slug. 28550_ Relay Coupler [Specialist] destroyed. 28551_ K-01 Serf collects debris. 28551_ The Access Shell folds into the floor. 28551_ EXIT=FOUND 28551_ Penetrated by Slug. 28551_ Slug penetrates Sealed Heavy Doors. 28552_ Penetrated by Slug. 28552_ Slug penetrates Sealed Heavy Doors. 28553_ Critical hit (Burn: +37). 28554_ X0-1V1 chuckles heartily! Map ----- +----------------------------------------------------+ | ####?????????????????????????????????????????????? | | ?????????????????????????????????????????????????? | | ?????????????????????????????????????????????????? | | ?????????????????????????????????????????????????? | | ?????????????????????????????????????????????????? | | ?????????????????????????????????????????????????? | | ?????????????????????????????????????????????????? | | ##???????????????????????????????????????????????? | | #???????????????????????????????????????????????? | | #???????????????????????????????????????????????? | | #???????????????????????????????????????????????? | | #???????????????????????????????????????????????? | | #??????????##???????????????????????????????????? | | #?????????# #???????BB????BB????????????????????? | | #????????# #????????BB????BB????????????????????? | | #???????# #?????????????????????????????????????? | | #########"#??????????????????????????????????????? | | # "#??????????????????????????????????????? | | # ##??????????????????????????????????????? | | # #?????????#""""""""""#??????????????????? | | # ! #?????????# #??????????????????? | | + #?????????# #??????????????????? | | # #?????????# #??????????????????? | | # #?????????# "" % #??????????????????? | | # #?????????# "< #??????????????????? | | # #?????????# @ #??????????????????? | | #####"""##?????????# #??????????????????? | | ????### #??????????# #??????????????????? | | ??????# #?????????## ##??????????????#### | | #######"######????# #??????????????# | | *! #????##"" % ##??????????????# | | ! u #?????#"" #???????????????#% # | | #######"### #?????#"" % #???????????????# # | | ????? #c #?????#T % KK #???????????????# # | | ???# # #?????#"" % l #??????????????## # | | ???# # #?###?#"E% p i g#??????????????#" # | | ???# #%m###*###g% p gggg############+### | | ???# # g !g=%!ggg% m E %%% % % | | ???# # % % km%!= E%g% k | | ???# ###### ################ % ######## | | ???#!!! #????# ################ #??????##### | | ???#!!! #????# i #??????????? | | ???#!! #????# !#??????????? | | #### #????# % #??????????? | | ## #????# #??????????? | | ## #????# #??????????? | | ! ## #????# #??????????? | | #########????# ! #??????????? | | ################## ########### #??????????? | | + + """T""" # #?????????# #??????????? | +----------------------------------------------------+ Best States ------------- Heat Dissipation 121 Energy Generation 101 Energy Capacity 3093 Matter Stores 1100 Matter Capacity 1100 Sight Range 28 Terrain Scan Density 10 Jamming Range 16 Armor Coverage 600 Resistance: TH 30 Resistance: EM 75 Weapon Cycling 25 Phase Shifting 15 Evasion (%) 67 Targeting Accuracy 12 Core Analysis 6 Recoil Reduction 6 Kinecelleration 40 Offensive Hacking 16 Defensive Hacking 12 Relay Coupler Types 5 Relay Coupler Value 268 Item Schematics ----------------- Ovr. Pulse Rifle | -7/Factory | Scanalyzed Imp. Heavy Treads | -6/Factory | Scanalyzed Hvy. Flak Cannon | -5/Factory | Scanalyzed Adv. Heavy Siege Treads | -3/Research | Scanalyzed Robot Schematics ------------------ None Fabricated ------------ Nothing Repaired ---------- Grenade Launcher | 23% | -9/Materials Studied --------- Com. Wheel | -9/Materials | Hacked Lgt. Treads | -9/Materials | Hacked Hvy. Assault Rifle | -9/Materials | Hacked Lgt. Ion Engine | -9/Materials | Hacked Mni. Grenade Launcher | -7/Factory | Hacked Arm. Huge Wheel | -7/Factory | Hacked Remote Datajack | -7/Factory | Hacked Chainsword | -7/Factory | Hacked Imp. Remote Datajack | -5/Factory | Hacked Micro-nuke Launcher | -4/Factory | Hacked Alien Tech Used ----------------- None Achievements -------------- Boltbath Challenges ------------ None Game ------ Seed ShadeSpreadMediator Manual? 0 Play Time 05:48:43 Cumulative 582.9 hours Start 2026.06.30 @ 19:10:20 End 2026.07.01 @ 23:17:11 Sessions 16 Manual Loads 0 Difficulty Rogue Special Mode None Game No. 496 Rogue 460 Adventurer 36 Explorer 0 Win Type - Total 5 Types 2/0/0/1/0/0/0/2/0/0 Lore% 84 Gallery% 72 Achievement% 65 Wizard Run 0 Options --------- Layout 2 ASCII 0 Keyboard 0 Movement Numpad Keybinds 0 Fullscreen 1 Font 48/Smallcaps Map View 50x44 Zoom Use 0% Tactical HUD 1 Map Filters NONE Filters NONE Steam 1 RUN: 906144ea-fe20-4e22-950f-af8030053f2f